{"text_format":"1","workbook":"xlsx","n_sheets":2,"sheets":["Zeitplan","Liste der Aktivitäten"],"not_rendered":{"charts":0,"images":1,"macros":1,"external_links":0,"defined_names":13,"comments":0,"pivot_tables":0},"unopened":[],"bounds":{"document_bytes":16777216,"sheet_cells":100000,"rows_first":2000,"rows_last":500,"rows_between":2000,"halvings":0,"cell_chars":16384,"cell_head_chars":4096},"cells_cut":0,"cells_raw":0,"read":"whole","date_system":"1900"}

{"sheet":"Zeitplan","index":0,"n_rows":64,"n_cols":9,"rows_kept":64,"cut":false,"hidden":false,"merged":[[1,1,2,5]]}
[]
[null,"Zeitplan für ...",null,null,null,null,"BEGINN","ZEITRAUM"]
[null,null,null,null,null,null,"08:00:00","15 MIN.",{"$f":"--LEFT(texteminutes,2)","v":15}]
[null,"UHRZEIT","SONNTAG","MONTAG","DIENSTAG","MITTWOCH","DONNERSTAG","FREITAG","SAMSTAG"]
[null,{"$f":"Début","v":"08:00:00"},{"$f":"IFERROR(INDEX(tblListedesclasses[],MATCH(SUMPRODUCT((tblListedesclasses[TAG]=tblHoraires[[#Headers],[SONNTAG]])*($B5>=tblListedesclasses[BEGINNZEIT])*($B5<=tblListedesclasses[ENDZEIT]),tblListedesclasses[UNIQUE]),tblListedesclasses[UNIQUE],0),2),0)","v":0},{"$f":"IFERROR(INDEX(tblListedesclasses[],MATCH(SUMPRODUCT((tblListedesclasses[TAG]=tblHoraires[[#Headers],[MONTAG]])*($B5>=tblListedesclasses[BEGINNZEIT])*($B5<=tblListedesclasses[ENDZEIT]),tblListedesclasses[UNIQUE]),tblListedesclasses[UNIQUE],0),2),0)","v":0},{"$f":"IFERROR(INDEX(tblListedesclasses[],MATCH(SUMPRODUCT((tblListedesclasses[TAG]=tblHoraires[[#Headers],[DIENSTAG]])*($B5>=tblListedesclasses[BEGINNZEIT])*($B5<=tblListedesclasses[ENDZEIT]),tblListedesclasses[UNIQUE]),tblListedesclasses[UNIQUE],0),2),0)","v":0},{"$f":"IFERROR(INDEX(tblListedesclasses[],MATCH(SUMPRODUCT((tblListedesclasses[TAG]=tblHoraires[[#Headers],[MITTWOCH]])*($B5>=tblListedesclasses[BEGINNZEIT])*($B5<=tblListedesclasses[ENDZEIT]),tblListedesclasses[UNIQUE]),tblListedesclasses[UNIQUE],0),2),0)","v":0},{"$f":"IFERROR(INDEX(tblListedesclasses[],MATCH(SUMPRODUCT((tblListedesclasses[TAG]=tblHoraires[[#Headers],[DONNERSTAG]])*($B5>=tblListedesclasses[BEGINNZEIT])*($B5<=tblListedesclasses[ENDZEIT]),tblListedesclasses[UNIQUE]),tblListedesclasses[UNIQUE],0),2),0)","v":0},{"$f":"IFERROR(INDEX(tblListedesclasses[],MATCH(SUMPRODUCT((tblListedesclasses[TAG]=tblHoraires[[#Headers],[FREITAG]])*($B5>=tblListedesclasses[BEGINNZEIT])*($B5<=tblListedesclasses[ENDZEIT]),tblListedesclasses[UNIQUE]),tblListedesclasses[UNIQUE],0),2),0)","v":0},{"$f":"IFERROR(INDEX(tblListedesclasses[],MATCH(SUMPRODUCT((tblListedesclasses[TAG]=tblHoraires[[#Headers],[SAMSTAG]])*($B5>=tblListedesclasses[BEGINNZEIT])*($B5<=tblListedesclasses[ENDZEIT]),tblListedesclasses[UNIQUE]),tblListedesclasses[UNIQUE],0),2),0)","v":0}]
[null,{"$f":"B5+TIME(0,Intervalleminutes,0)","v":"08:15:00"},{"$f":"IFERROR(INDEX(tblListedesclasses[],MATCH(SUMPRODUCT((tblListedesclasses[TAG]=tblHoraires[[#Headers],[SONNTAG]])*($B6>=tblListedesclasses[BEGINNZEIT])*($B6<=tblListedesclasses[ENDZEIT]),tblListedesclasses[UNIQUE]),tblListedesclasses[UNIQUE],0),2),0)","v":0},{"$f":"IFERROR(INDEX(tblListedesclasses[],MATCH(SUMPRODUCT((tblListedesclasses[TAG]=tblHoraires[[#Headers],[MONTAG]])*($B6>=tblListedesclasses[BEGINNZEIT])*($B6<=tblListedesclasses[ENDZEIT]),tblListedesclasses[UNIQUE]),tblListedesclasses[UNIQUE],0),2),0)","v":0},{"$f":"IFERROR(INDEX(tblListedesclasses[],MATCH(SUMPRODUCT((tblListedesclasses[TAG]=tblHoraires[[#Headers],[DIENSTAG]])*($B6>=tblListedesclasses[BEGINNZEIT])*($B6<=tblListedesclasses[ENDZEIT]),tblListedesclasses[UNIQUE]),tblListedesclasses[UNIQUE],0),2),0)","v":0},{"$f":"IFERROR(INDEX(tblListedesclasses[],MATCH(SUMPRODUCT((tblListedesclasses[TAG]=tblHoraires[[#Headers],[MITTWOCH]])*($B6>=tblListedesclasses[BEGINNZEIT])*($B6<=tblListedesclasses[ENDZEIT]),tblListedesclasses[UNIQUE]),tblListedesclasses[UNIQUE],0),2),0)","v":0},{"$f":"IFERROR(INDEX(tblListedesclasses[],MATCH(SUMPRODUCT((tblListedesclasses[TAG]=tblHoraires[[#Headers],[DONNERSTAG]])*($B6>=tblListedesclasses[BEGINNZEIT])*($B6<=tblListedesclasses[ENDZEIT]),tblListedesclasses[UNIQUE]),tblListedesclasses[UNIQUE],0),2),0)","v":0},{"$f":"IFERROR(INDEX(tblListedesclasses[],MATCH(SUMPRODUCT((tblListedesclasses[TAG]=tblHoraires[[#Headers],[FREITAG]])*($B6>=tblListedesclasses[BEGINNZEIT])*($B6<=tblListedesclasses[ENDZEIT]),tblListedesclasses[UNIQUE]),tblListedesclasses[UNIQUE],0),2),0)","v":0},{"$f":"IFERROR(INDEX(tblListedesclasses[],MATCH(SUMPRODUCT((tblListedesclasses[TAG]=tblHoraires[[#Headers],[SAMSTAG]])*($B6>=tblListedesclasses[BEGINNZEIT])*($B6<=tblListedesclasses[ENDZEIT]),tblListedesclasses[UNIQUE]),tblListedesclasses[UNIQUE],0),2),0)","v":0}]
[null,"08:30:00",{"$f":"IFERROR(INDEX(tblListedesclasses[],MATCH(SUMPRODUCT((tblListedesclasses[TAG]=tblHoraires[[#Headers],[SONNTAG]])*($B7>=tblListedesclasses[BEGINNZEIT])*($B7<=tblListedesclasses[ENDZEIT]),tblListedesclasses[UNIQUE]),tblListedesclasses[UNIQUE],0),2),0)","v":0},{"$f":"IFERROR(INDEX(tblListedesclasses[],MATCH(SUMPRODUCT((tblListedesclasses[TAG]=tblHoraires[[#Headers],[MONTAG]])*($B7>=tblListedesclasses[BEGINNZEIT])*($B7<=tblListedesclasses[ENDZEIT]),tblListedesclasses[UNIQUE]),tblListedesclasses[UNIQUE],0),2),0)","v":0},{"$f":"IFERROR(INDEX(tblListedesclasses[],MATCH(SUMPRODUCT((tblListedesclasses[TAG]=tblHoraires[[#Headers],[DIENSTAG]])*($B7>=tblListedesclasses[BEGINNZEIT])*($B7<=tblListedesclasses[ENDZEIT]),tblListedesclasses[UNIQUE]),tblListedesclasses[UNIQUE],0),2),0)","v":0},{"$f":"IFERROR(INDEX(tblListedesclasses[],MATCH(SUMPRODUCT((tblListedesclasses[TAG]=tblHoraires[[#Headers],[MITTWOCH]])*($B7>=tblListedesclasses[BEGINNZEIT])*($B7<=tblListedesclasses[ENDZEIT]),tblListedesclasses[UNIQUE]),tblListedesclasses[UNIQUE],0),2),0)","v":0},{"$f":"IFERROR(INDEX(tblListedesclasses[],MATCH(SUMPRODUCT((tblListedesclasses[TAG]=tblHoraires[[#Headers],[DONNERSTAG]])*($B7>=tblListedesclasses[BEGINNZEIT])*($B7<=tblListedesclasses[ENDZEIT]),tblListedesclasses[UNIQUE]),tblListedesclasses[UNIQUE],0),2),0)","v":0},{"$f":"IFERROR(INDEX(tblListedesclasses[],MATCH(SUMPRODUCT((tblListedesclasses[TAG]=tblHoraires[[#Headers],[FREITAG]])*($B7>=tblListedesclasses[BEGINNZEIT])*($B7<=tblListedesclasses[ENDZEIT]),tblListedesclasses[UNIQUE]),tblListedesclasses[UNIQUE],0),2),0)","v":0},{"$f":"IFERROR(INDEX(tblListedesclasses[],MATCH(SUMPRODUCT((tblListedesclasses[TAG]=tblHoraires[[#Headers],[SAMSTAG]])*($B7>=tblListedesclasses[BEGINNZEIT])*($B7<=tblListedesclasses[ENDZEIT]),tblListedesclasses[UNIQUE]),tblListedesclasses[UNIQUE],0),2),0)","v":"Mimi"}]
[null,"08:45:00",{"$f":"IFERROR(INDEX(tblListedesclasses[],MATCH(SUMPRODUCT((tblListedesclasses[TAG]=tblHoraires[[#Headers],[SONNTAG]])*($B8>=tblListedesclasses[BEGINNZEIT])*($B8<=tblListedesclasses[ENDZEIT]),tblListedesclasses[UNIQUE]),tblListedesclasses[UNIQUE],0),2),0)","v":0},{"$f":"IFERROR(INDEX(tblListedesclasses[],MATCH(SUMPRODUCT((tblListedesclasses[TAG]=tblHoraires[[#Headers],[MONTAG]])*($B8>=tblListedesclasses[BEGINNZEIT])*($B8<=tblListedesclasses[ENDZEIT]),tblListedesclasses[UNIQUE]),tblListedesclasses[UNIQUE],0),2),0)","v":0},{"$f":"IFERROR(INDEX(tblListedesclasses[],MATCH(SUMPRODUCT((tblListedesclasses[TAG]=tblHoraires[[#Headers],[DIENSTAG]])*($B8>=tblListedesclasses[BEGINNZEIT])*($B8<=tblListedesclasses[ENDZEIT]),tblListedesclasses[UNIQUE]),tblListedesclasses[UNIQUE],0),2),0)","v":0},{"$f":"IFERROR(INDEX(tblListedesclasses[],MATCH(SUMPRODUCT((tblListedesclasses[TAG]=tblHoraires[[#Headers],[MITTWOCH]])*($B8>=tblListedesclasses[BEGINNZEIT])*($B8<=tblListedesclasses[ENDZEIT]),tblListedesclasses[UNIQUE]),tblListedesclasses[UNIQUE],0),2),0)","v":0},{"$f":"IFERROR(INDEX(tblListedesclasses[],MATCH(SUMPRODUCT((tblListedesclasses[TAG]=tblHoraires[[#Headers],[DONNERSTAG]])*($B8>=tblListedesclasses[BEGINNZEIT])*($B8<=tblListedesclasses[ENDZEIT]),tblListedesclasses[UNIQUE]),tblListedesclasses[UNIQUE],0),2),0)","v":0},{"$f":"IFERROR(INDEX(tblListedesclasses[],MATCH(SUMPRODUCT((tblListedesclasses[TAG]=tblHoraires[[#Headers],[FREITAG]])*($B8>=tblListedesclasses[BEGINNZEIT])*($B8<=tblListedesclasses[ENDZEIT]),tblListedesclasses[UNIQUE]),tblListedesclasses[UNIQUE],0),2),0)","v":0},{"$f":"IFERROR(INDEX(tblListedesclasses[],MATCH(SUMPRODUCT((tblListedesclasses[TAG]=tblHoraires[[#Headers],[SAMSTAG]])*($B8>=tblListedesclasses[BEGINNZEIT])*($B8<=tblListedesclasses[ENDZEIT]),tblListedesclasses[UNIQUE]),tblListedesclasses[UNIQUE],0),2),0)","v":"Mimi"}]
[null,"09:00:00",{"$f":"IFERROR(INDEX(tblListedesclasses[],MATCH(SUMPRODUCT((tblListedesclasses[TAG]=tblHoraires[[#Headers],[SONNTAG]])*($B9>=tblListedesclasses[BEGINNZEIT])*($B9<=tblListedesclasses[ENDZEIT]),tblListedesclasses[UNIQUE]),tblListedesclasses[UNIQUE],0),2),0)","v":0},{"$f":"IFERROR(INDEX(tblListedesclasses[],MATCH(SUMPRODUCT((tblListedesclasses[TAG]=tblHoraires[[#Headers],[MONTAG]])*($B9>=tblListedesclasses[BEGINNZEIT])*($B9<=tblListedesclasses[ENDZEIT]),tblListedesclasses[UNIQUE]),tblListedesclasses[UNIQUE],0),2),0)","v":0},{"$f":"IFERROR(INDEX(tblListedesclasses[],MATCH(SUMPRODUCT((tblListedesclasses[TAG]=tblHoraires[[#Headers],[DIENSTAG]])*($B9>=tblListedesclasses[BEGINNZEIT])*($B9<=tblListedesclasses[ENDZEIT]),tblListedesclasses[UNIQUE]),tblListedesclasses[UNIQUE],0),2),0)","v":0},{"$f":"IFERROR(INDEX(tblListedesclasses[],MATCH(SUMPRODUCT((tblListedesclasses[TAG]=tblHoraires[[#Headers],[MITTWOCH]])*($B9>=tblListedesclasses[BEGINNZEIT])*($B9<=tblListedesclasses[ENDZEIT]),tblListedesclasses[UNIQUE]),tblListedesclasses[UNIQUE],0),2),0)","v":0},{"$f":"IFERROR(INDEX(tblListedesclasses[],MATCH(SUMPRODUCT((tblListedesclasses[TAG]=tblHoraires[[#Headers],[DONNERSTAG]])*($B9>=tblListedesclasses[BEGINNZEIT])*($B9<=tblListedesclasses[ENDZEIT]),tblListedesclasses[UNIQUE]),tblListedesclasses[UNIQUE],0),2),0)","v":"Alice"},{"$f":"IFERROR(INDEX(tblListedesclasses[],MATCH(SUMPRODUCT((tblListedesclasses[TAG]=tblHoraires[[#Headers],[FREITAG]])*($B9>=tblListedesclasses[BEGINNZEIT])*($B9<=tblListedesclasses[ENDZEIT]),tblListedesclasses[UNIQUE]),tblListedesclasses[UNIQUE],0),2),0)","v":"Spitex"},{"$f":"IFERROR(INDEX(tblListedesclasses[],MATCH(SUMPRODUCT((tblListedesclasses[TAG]=tblHoraires[[#Headers],[SAMSTAG]])*($B9>=tblListedesclasses[BEGINNZEIT])*($B9<=tblListedesclasses[ENDZEIT]),tblListedesclasses[UNIQUE]),tblListedesclasses[UNIQUE],0),2),0)","v":"Mimi"}]
[null,"09:15:00",{"$f":"IFERROR(INDEX(tblListedesclasses[],MATCH(SUMPRODUCT((tblListedesclasses[TAG]=tblHoraires[[#Headers],[SONNTAG]])*($B10>=tblListedesclasses[BEGINNZEIT])*($B10<=tblListedesclasses[ENDZEIT]),tblListedesclasses[UNIQUE]),tblListedesclasses[UNIQUE],0),2),0)","v":0},{"$f":"IFERROR(INDEX(tblListedesclasses[],MATCH(SUMPRODUCT((tblListedesclasses[TAG]=tblHoraires[[#Headers],[MONTAG]])*($B10>=tblListedesclasses[BEGINNZEIT])*($B10<=tblListedesclasses[ENDZEIT]),tblListedesclasses[UNIQUE]),tblListedesclasses[UNIQUE],0),2),0)","v":0},{"$f":"IFERROR(INDEX(tblListedesclasses[],MATCH(SUMPRODUCT((tblListedesclasses[TAG]=tblHoraires[[#Headers],[DIENSTAG]])*($B10>=tblListedesclasses[BEGINNZEIT])*($B10<=tblListedesclasses[ENDZEIT]),tblListedesclasses[UNIQUE]),tblListedesclasses[UNIQUE],0),2),0)","v":0},{"$f":"IFERROR(INDEX(tblListedesclasses[],MATCH(SUMPRODUCT((tblListedesclasses[TAG]=tblHoraires[[#Headers],[MITTWOCH]])*($B10>=tblListedesclasses[BEGINNZEIT])*($B10<=tblListedesclasses[ENDZEIT]),tblListedesclasses[UNIQUE]),tblListedesclasses[UNIQUE],0),2),0)","v":0},{"$f":"IFERROR(INDEX(tblListedesclasses[],MATCH(SUMPRODUCT((tblListedesclasses[TAG]=tblHoraires[[#Headers],[DONNERSTAG]])*($B10>=tblListedesclasses[BEGINNZEIT])*($B10<=tblListedesclasses[ENDZEIT]),tblListedesclasses[UNIQUE]),tblListedesclasses[UNIQUE],0),2),0)","v":"Alice"},{"$f":"IFERROR(INDEX(tblListedesclasses[],MATCH(SUMPRODUCT((tblListedesclasses[TAG]=tblHoraires[[#Headers],[FREITAG]])*($B10>=tblListedesclasses[BEGINNZEIT])*($B10<=tblListedesclasses[ENDZEIT]),tblListedesclasses[UNIQUE]),tblListedesclasses[UNIQUE],0),2),0)","v":"Spitex"},{"$f":"IFERROR(INDEX(tblListedesclasses[],MATCH(SUMPRODUCT((tblListedesclasses[TAG]=tblHoraires[[#Headers],[SAMSTAG]])*($B10>=tblListedesclasses[BEGINNZEIT])*($B10<=tblListedesclasses[ENDZEIT]),tblListedesclasses[UNIQUE]),tblListedesclasses[UNIQUE],0),2),0)","v":"Mimi"}]
[null,"09:30:00",{"$f":"IFERROR(INDEX(tblListedesclasses[],MATCH(SUMPRODUCT((tblListedesclasses[TAG]=tblHoraires[[#Headers],[SONNTAG]])*($B11>=tblListedesclasses[BEGINNZEIT])*($B11<=tblListedesclasses[ENDZEIT]),tblListedesclasses[UNIQUE]),tblListedesclasses[UNIQUE],0),2),0)","v":"Ich"},{"$f":"IFERROR(INDEX(tblListedesclasses[],MATCH(SUMPRODUCT((tblListedesclasses[TAG]=tblHoraires[[#Headers],[MONTAG]])*($B11>=tblListedesclasses[BEGINNZEIT])*($B11<=tblListedesclasses[ENDZEIT]),tblListedesclasses[UNIQUE]),tblListedesclasses[UNIQUE],0),2),0)","v":0},{"$f":"IFERROR(INDEX(tblListedesclasses[],MATCH(SUMPRODUCT((tblListedesclasses[TAG]=tblHoraires[[#Headers],[DIENSTAG]])*($B11>=tblListedesclasses[BEGINNZEIT])*($B11<=tblListedesclasses[ENDZEIT]),tblListedesclasses[UNIQUE]),tblListedesclasses[UNIQUE],0),2),0)","v":0},{"$f":"IFERROR(INDEX(tblListedesclasses[],MATCH(SUMPRODUCT((tblListedesclasses[TAG]=tblHoraires[[#Headers],[MITTWOCH]])*($B11>=tblListedesclasses[BEGINNZEIT])*($B11<=tblListedesclasses[ENDZEIT]),tblListedesclasses[UNIQUE]),tblListedesclasses[UNIQUE],0),2),0)","v":0},{"$f":"IFERROR(INDEX(tblListedesclasses[],MATCH(SUMPRODUCT((tblListedesclasses[TAG]=tblHoraires[[#Headers],[DONNERSTAG]])*($B11>=tblListedesclasses[BEGINNZEIT])*($B11<=tblListedesclasses[ENDZEIT]),tblListedesclasses[UNIQUE]),tblListedesclasses[UNIQUE],0),2),0)","v":"Alice"},{"$f":"IFERROR(INDEX(tblListedesclasses[],MATCH(SUMPRODUCT((tblListedesclasses[TAG]=tblHoraires[[#Headers],[FREITAG]])*($B11>=tblListedesclasses[BEGINNZEIT])*($B11<=tblListedesclasses[ENDZEIT]),tblListedesclasses[UNIQUE]),tblListedesclasses[UNIQUE],0),2),0)","v":"Spitex"},{"$f":"IFERROR(INDEX(tblListedesclasses[],MATCH(SUMPRODUCT((tblListedesclasses[TAG]=tblHoraires[[#Headers],[SAMSTAG]])*($B11>=tblListedesclasses[BEGINNZEIT])*($B11<=tblListedesclasses[ENDZEIT]),tblListedesclasses[UNIQUE]),tblListedesclasses[UNIQUE],0),2),0)","v":"Mimi"}]
[null,"09:45:00",{"$f":"IFERROR(INDEX(tblListedesclasses[],MATCH(SUMPRODUCT((tblListedesclasses[TAG]=tblHoraires[[#Headers],[SONNTAG]])*($B12>=tblListedesclasses[BEGINNZEIT])*($B12<=tblListedesclasses[ENDZEIT]),tblListedesclasses[UNIQUE]),tblListedesclasses[UNIQUE],0),2),0)","v":"Ich"},{"$f":"IFERROR(INDEX(tblListedesclasses[],MATCH(SUMPRODUCT((tblListedesclasses[TAG]=tblHoraires[[#Headers],[MONTAG]])*($B12>=tblListedesclasses[BEGINNZEIT])*($B12<=tblListedesclasses[ENDZEIT]),tblListedesclasses[UNIQUE]),tblListedesclasses[UNIQUE],0),2),0)","v":0},{"$f":"IFERROR(INDEX(tblListedesclasses[],MATCH(SUMPRODUCT((tblListedesclasses[TAG]=tblHoraires[[#Headers],[DIENSTAG]])*($B12>=tblListedesclasses[BEGINNZEIT])*($B12<=tblListedesclasses[ENDZEIT]),tblListedesclasses[UNIQUE]),tblListedesclasses[UNIQUE],0),2),0)","v":0},{"$f":"IFERROR(INDEX(tblListedesclasses[],MATCH(SUMPRODUCT((tblListedesclasses[TAG]=tblHoraires[[#Headers],[MITTWOCH]])*($B12>=tblListedesclasses[BEGINNZEIT])*($B12<=tblListedesclasses[ENDZEIT]),tblListedesclasses[UNIQUE]),tblListedesclasses[UNIQUE],0),2),0)","v":0},{"$f":"IFERROR(INDEX(tblListedesclasses[],MATCH(SUMPRODUCT((tblListedesclasses[TAG]=tblHoraires[[#Headers],[DONNERSTAG]])*($B12>=tblListedesclasses[BEGINNZEIT])*($B12<=tblListedesclasses[ENDZEIT]),tblListedesclasses[UNIQUE]),tblListedesclasses[UNIQUE],0),2),0)","v":"Alice"},{"$f":"IFERROR(INDEX(tblListedesclasses[],MATCH(SUMPRODUCT((tblListedesclasses[TAG]=tblHoraires[[#Headers],[FREITAG]])*($B12>=tblListedesclasses[BEGINNZEIT])*($B12<=tblListedesclasses[ENDZEIT]),tblListedesclasses[UNIQUE]),tblListedesclasses[UNIQUE],0),2),0)","v":0},{"$f":"IFERROR(INDEX(tblListedesclasses[],MATCH(SUMPRODUCT((tblListedesclasses[TAG]=tblHoraires[[#Headers],[SAMSTAG]])*($B12>=tblListedesclasses[BEGINNZEIT])*($B12<=tblListedesclasses[ENDZEIT]),tblListedesclasses[UNIQUE]),tblListedesclasses[UNIQUE],0),2),0)","v":"Mimi"}]
[null,"10:00:00",{"$f":"IFERROR(INDEX(tblListedesclasses[],MATCH(SUMPRODUCT((tblListedesclasses[TAG]=tblHoraires[[#Headers],[SONNTAG]])*($B13>=tblListedesclasses[BEGINNZEIT])*($B13<=tblListedesclasses[ENDZEIT]),tblListedesclasses[UNIQUE]),tblListedesclasses[UNIQUE],0),2),0)","v":"Ich"},{"$f":"IFERROR(INDEX(tblListedesclasses[],MATCH(SUMPRODUCT((tblListedesclasses[TAG]=tblHoraires[[#Headers],[MONTAG]])*($B13>=tblListedesclasses[BEGINNZEIT])*($B13<=tblListedesclasses[ENDZEIT]),tblListedesclasses[UNIQUE]),tblListedesclasses[UNIQUE],0),2),0)","v":0},{"$f":"IFERROR(INDEX(tblListedesclasses[],MATCH(SUMPRODUCT((tblListedesclasses[TAG]=tblHoraires[[#Headers],[DIENSTAG]])*($B13>=tblListedesclasses[BEGINNZEIT])*($B13<=tblListedesclasses[ENDZEIT]),tblListedesclasses[UNIQUE]),tblListedesclasses[UNIQUE],0),2),0)","v":0},{"$f":"IFERROR(INDEX(tblListedesclasses[],MATCH(SUMPRODUCT((tblListedesclasses[TAG]=tblHoraires[[#Headers],[MITTWOCH]])*($B13>=tblListedesclasses[BEGINNZEIT])*($B13<=tblListedesclasses[ENDZEIT]),tblListedesclasses[UNIQUE]),tblListedesclasses[UNIQUE],0),2),0)","v":0},{"$f":"IFERROR(INDEX(tblListedesclasses[],MATCH(SUMPRODUCT((tblListedesclasses[TAG]=tblHoraires[[#Headers],[DONNERSTAG]])*($B13>=tblListedesclasses[BEGINNZEIT])*($B13<=tblListedesclasses[ENDZEIT]),tblListedesclasses[UNIQUE]),tblListedesclasses[UNIQUE],0),2),0)","v":"Alice"},{"$f":"IFERROR(INDEX(tblListedesclasses[],MATCH(SUMPRODUCT((tblListedesclasses[TAG]=tblHoraires[[#Headers],[FREITAG]])*($B13>=tblListedesclasses[BEGINNZEIT])*($B13<=tblListedesclasses[ENDZEIT]),tblListedesclasses[UNIQUE]),tblListedesclasses[UNIQUE],0),2),0)","v":0},{"$f":"IFERROR(INDEX(tblListedesclasses[],MATCH(SUMPRODUCT((tblListedesclasses[TAG]=tblHoraires[[#Headers],[SAMSTAG]])*($B13>=tblListedesclasses[BEGINNZEIT])*($B13<=tblListedesclasses[ENDZEIT]),tblListedesclasses[UNIQUE]),tblListedesclasses[UNIQUE],0),2),0)","v":"Mimi"}]
[null,"10:15:00",{"$f":"IFERROR(INDEX(tblListedesclasses[],MATCH(SUMPRODUCT((tblListedesclasses[TAG]=tblHoraires[[#Headers],[SONNTAG]])*($B14>=tblListedesclasses[BEGINNZEIT])*($B14<=tblListedesclasses[ENDZEIT]),tblListedesclasses[UNIQUE]),tblListedesclasses[UNIQUE],0),2),0)","v":"Ich"},{"$f":"IFERROR(INDEX(tblListedesclasses[],MATCH(SUMPRODUCT((tblListedesclasses[TAG]=tblHoraires[[#Headers],[MONTAG]])*($B14>=tblListedesclasses[BEGINNZEIT])*($B14<=tblListedesclasses[ENDZEIT]),tblListedesclasses[UNIQUE]),tblListedesclasses[UNIQUE],0),2),0)","v":0},{"$f":"IFERROR(INDEX(tblListedesclasses[],MATCH(SUMPRODUCT((tblListedesclasses[TAG]=tblHoraires[[#Headers],[DIENSTAG]])*($B14>=tblListedesclasses[BEGINNZEIT])*($B14<=tblListedesclasses[ENDZEIT]),tblListedesclasses[UNIQUE]),tblListedesclasses[UNIQUE],0),2),0)","v":0},{"$f":"IFERROR(INDEX(tblListedesclasses[],MATCH(SUMPRODUCT((tblListedesclasses[TAG]=tblHoraires[[#Headers],[MITTWOCH]])*($B14>=tblListedesclasses[BEGINNZEIT])*($B14<=tblListedesclasses[ENDZEIT]),tblListedesclasses[UNIQUE]),tblListedesclasses[UNIQUE],0),2),0)","v":0},{"$f":"IFERROR(INDEX(tblListedesclasses[],MATCH(SUMPRODUCT((tblListedesclasses[TAG]=tblHoraires[[#Headers],[DONNERSTAG]])*($B14>=tblListedesclasses[BEGINNZEIT])*($B14<=tblListedesclasses[ENDZEIT]),tblListedesclasses[UNIQUE]),tblListedesclasses[UNIQUE],0),2),0)","v":0},{"$f":"IFERROR(INDEX(tblListedesclasses[],MATCH(SUMPRODUCT((tblListedesclasses[TAG]=tblHoraires[[#Headers],[FREITAG]])*($B14>=tblListedesclasses[BEGINNZEIT])*($B14<=tblListedesclasses[ENDZEIT]),tblListedesclasses[UNIQUE]),tblListedesclasses[UNIQUE],0),2),0)","v":0},{"$f":"IFERROR(INDEX(tblListedesclasses[],MATCH(SUMPRODUCT((tblListedesclasses[TAG]=tblHoraires[[#Headers],[SAMSTAG]])*($B14>=tblListedesclasses[BEGINNZEIT])*($B14<=tblListedesclasses[ENDZEIT]),tblListedesclasses[UNIQUE]),tblListedesclasses[UNIQUE],0),2),0)","v":"Mimi"}]
[null,"10:30:00",{"$f":"IFERROR(INDEX(tblListedesclasses[],MATCH(SUMPRODUCT((tblListedesclasses[TAG]=tblHoraires[[#Headers],[SONNTAG]])*($B15>=tblListedesclasses[BEGINNZEIT])*($B15<=tblListedesclasses[ENDZEIT]),tblListedesclasses[UNIQUE]),tblListedesclasses[UNIQUE],0),2),0)","v":"Ich"},{"$f":"IFERROR(INDEX(tblListedesclasses[],MATCH(SUMPRODUCT((tblListedesclasses[TAG]=tblHoraires[[#Headers],[MONTAG]])*($B15>=tblListedesclasses[BEGINNZEIT])*($B15<=tblListedesclasses[ENDZEIT]),tblListedesclasses[UNIQUE]),tblListedesclasses[UNIQUE],0),2),0)","v":0},{"$f":"IFERROR(INDEX(tblListedesclasses[],MATCH(SUMPRODUCT((tblListedesclasses[TAG]=tblHoraires[[#Headers],[DIENSTAG]])*($B15>=tblListedesclasses[BEGINNZEIT])*($B15<=tblListedesclasses[ENDZEIT]),tblListedesclasses[UNIQUE]),tblListedesclasses[UNIQUE],0),2),0)","v":0},{"$f":"IFERROR(INDEX(tblListedesclasses[],MATCH(SUMPRODUCT((tblListedesclasses[TAG]=tblHoraires[[#Headers],[MITTWOCH]])*($B15>=tblListedesclasses[BEGINNZEIT])*($B15<=tblListedesclasses[ENDZEIT]),tblListedesclasses[UNIQUE]),tblListedesclasses[UNIQUE],0),2),0)","v":0},{"$f":"IFERROR(INDEX(tblListedesclasses[],MATCH(SUMPRODUCT((tblListedesclasses[TAG]=tblHoraires[[#Headers],[DONNERSTAG]])*($B15>=tblListedesclasses[BEGINNZEIT])*($B15<=tblListedesclasses[ENDZEIT]),tblListedesclasses[UNIQUE]),tblListedesclasses[UNIQUE],0),2),0)","v":0},{"$f":"IFERROR(INDEX(tblListedesclasses[],MATCH(SUMPRODUCT((tblListedesclasses[TAG]=tblHoraires[[#Headers],[FREITAG]])*($B15>=tblListedesclasses[BEGINNZEIT])*($B15<=tblListedesclasses[ENDZEIT]),tblListedesclasses[UNIQUE]),tblListedesclasses[UNIQUE],0),2),0)","v":0},{"$f":"IFERROR(INDEX(tblListedesclasses[],MATCH(SUMPRODUCT((tblListedesclasses[TAG]=tblHoraires[[#Headers],[SAMSTAG]])*($B15>=tblListedesclasses[BEGINNZEIT])*($B15<=tblListedesclasses[ENDZEIT]),tblListedesclasses[UNIQUE]),tblListedesclasses[UNIQUE],0),2),0)","v":"Mimi"}]
[null,"10:45:00",{"$f":"IFERROR(INDEX(tblListedesclasses[],MATCH(SUMPRODUCT((tblListedesclasses[TAG]=tblHoraires[[#Headers],[SONNTAG]])*($B16>=tblListedesclasses[BEGINNZEIT])*($B16<=tblListedesclasses[ENDZEIT]),tblListedesclasses[UNIQUE]),tblListedesclasses[UNIQUE],0),2),0)","v":"Ich"},{"$f":"IFERROR(INDEX(tblListedesclasses[],MATCH(SUMPRODUCT((tblListedesclasses[TAG]=tblHoraires[[#Headers],[MONTAG]])*($B16>=tblListedesclasses[BEGINNZEIT])*($B16<=tblListedesclasses[ENDZEIT]),tblListedesclasses[UNIQUE]),tblListedesclasses[UNIQUE],0),2),0)","v":0},{"$f":"IFERROR(INDEX(tblListedesclasses[],MATCH(SUMPRODUCT((tblListedesclasses[TAG]=tblHoraires[[#Headers],[DIENSTAG]])*($B16>=tblListedesclasses[BEGINNZEIT])*($B16<=tblListedesclasses[ENDZEIT]),tblListedesclasses[UNIQUE]),tblListedesclasses[UNIQUE],0),2),0)","v":0},{"$f":"IFERROR(INDEX(tblListedesclasses[],MATCH(SUMPRODUCT((tblListedesclasses[TAG]=tblHoraires[[#Headers],[MITTWOCH]])*($B16>=tblListedesclasses[BEGINNZEIT])*($B16<=tblListedesclasses[ENDZEIT]),tblListedesclasses[UNIQUE]),tblListedesclasses[UNIQUE],0),2),0)","v":0},{"$f":"IFERROR(INDEX(tblListedesclasses[],MATCH(SUMPRODUCT((tblListedesclasses[TAG]=tblHoraires[[#Headers],[DONNERSTAG]])*($B16>=tblListedesclasses[BEGINNZEIT])*($B16<=tblListedesclasses[ENDZEIT]),tblListedesclasses[UNIQUE]),tblListedesclasses[UNIQUE],0),2),0)","v":0},{"$f":"IFERROR(INDEX(tblListedesclasses[],MATCH(SUMPRODUCT((tblListedesclasses[TAG]=tblHoraires[[#Headers],[FREITAG]])*($B16>=tblListedesclasses[BEGINNZEIT])*($B16<=tblListedesclasses[ENDZEIT]),tblListedesclasses[UNIQUE]),tblListedesclasses[UNIQUE],0),2),0)","v":0},{"$f":"IFERROR(INDEX(tblListedesclasses[],MATCH(SUMPRODUCT((tblListedesclasses[TAG]=tblHoraires[[#Headers],[SAMSTAG]])*($B16>=tblListedesclasses[BEGINNZEIT])*($B16<=tblListedesclasses[ENDZEIT]),tblListedesclasses[UNIQUE]),tblListedesclasses[UNIQUE],0),2),0)","v":0}]
[null,"11:00:00",{"$f":"IFERROR(INDEX(tblListedesclasses[],MATCH(SUMPRODUCT((tblListedesclasses[TAG]=tblHoraires[[#Headers],[SONNTAG]])*($B17>=tblListedesclasses[BEGINNZEIT])*($B17<=tblListedesclasses[ENDZEIT]),tblListedesclasses[UNIQUE]),tblListedesclasses[UNIQUE],0),2),0)","v":0},{"$f":"IFERROR(INDEX(tblListedesclasses[],MATCH(SUMPRODUCT((tblListedesclasses[TAG]=tblHoraires[[#Headers],[MONTAG]])*($B17>=tblListedesclasses[BEGINNZEIT])*($B17<=tblListedesclasses[ENDZEIT]),tblListedesclasses[UNIQUE]),tblListedesclasses[UNIQUE],0),2),0)","v":0},{"$f":"IFERROR(INDEX(tblListedesclasses[],MATCH(SUMPRODUCT((tblListedesclasses[TAG]=tblHoraires[[#Headers],[DIENSTAG]])*($B17>=tblListedesclasses[BEGINNZEIT])*($B17<=tblListedesclasses[ENDZEIT]),tblListedesclasses[UNIQUE]),tblListedesclasses[UNIQUE],0),2),0)","v":"Spitex"},{"$f":"IFERROR(INDEX(tblListedesclasses[],MATCH(SUMPRODUCT((tblListedesclasses[TAG]=tblHoraires[[#Headers],[MITTWOCH]])*($B17>=tblListedesclasses[BEGINNZEIT])*($B17<=tblListedesclasses[ENDZEIT]),tblListedesclasses[UNIQUE]),tblListedesclasses[UNIQUE],0),2),0)","v":0},{"$f":"IFERROR(INDEX(tblListedesclasses[],MATCH(SUMPRODUCT((tblListedesclasses[TAG]=tblHoraires[[#Headers],[DONNERSTAG]])*($B17>=tblListedesclasses[BEGINNZEIT])*($B17<=tblListedesclasses[ENDZEIT]),tblListedesclasses[UNIQUE]),tblListedesclasses[UNIQUE],0),2),0)","v":0},{"$f":"IFERROR(INDEX(tblListedesclasses[],MATCH(SUMPRODUCT((tblListedesclasses[TAG]=tblHoraires[[#Headers],[FREITAG]])*($B17>=tblListedesclasses[BEGINNZEIT])*($B17<=tblListedesclasses[ENDZEIT]),tblListedesclasses[UNIQUE]),tblListedesclasses[UNIQUE],0),2),0)","v":0},{"$f":"IFERROR(INDEX(tblListedesclasses[],MATCH(SUMPRODUCT((tblListedesclasses[TAG]=tblHoraires[[#Headers],[SAMSTAG]])*($B17>=tblListedesclasses[BEGINNZEIT])*($B17<=tblListedesclasses[ENDZEIT]),tblListedesclasses[UNIQUE]),tblListedesclasses[UNIQUE],0),2),0)","v":0}]
[null,"11:15:00",{"$f":"IFERROR(INDEX(tblListedesclasses[],MATCH(SUMPRODUCT((tblListedesclasses[TAG]=tblHoraires[[#Headers],[SONNTAG]])*($B18>=tblListedesclasses[BEGINNZEIT])*($B18<=tblListedesclasses[ENDZEIT]),tblListedesclasses[UNIQUE]),tblListedesclasses[UNIQUE],0),2),0)","v":0},{"$f":"IFERROR(INDEX(tblListedesclasses[],MATCH(SUMPRODUCT((tblListedesclasses[TAG]=tblHoraires[[#Headers],[MONTAG]])*($B18>=tblListedesclasses[BEGINNZEIT])*($B18<=tblListedesclasses[ENDZEIT]),tblListedesclasses[UNIQUE]),tblListedesclasses[UNIQUE],0),2),0)","v":0},{"$f":"IFERROR(INDEX(tblListedesclasses[],MATCH(SUMPRODUCT((tblListedesclasses[TAG]=tblHoraires[[#Headers],[DIENSTAG]])*($B18>=tblListedesclasses[BEGINNZEIT])*($B18<=tblListedesclasses[ENDZEIT]),tblListedesclasses[UNIQUE]),tblListedesclasses[UNIQUE],0),2),0)","v":"Spitex"},{"$f":"IFERROR(INDEX(tblListedesclasses[],MATCH(SUMPRODUCT((tblListedesclasses[TAG]=tblHoraires[[#Headers],[MITTWOCH]])*($B18>=tblListedesclasses[BEGINNZEIT])*($B18<=tblListedesclasses[ENDZEIT]),tblListedesclasses[UNIQUE]),tblListedesclasses[UNIQUE],0),2),0)","v":0},{"$f":"IFERROR(INDEX(tblListedesclasses[],MATCH(SUMPRODUCT((tblListedesclasses[TAG]=tblHoraires[[#Headers],[DONNERSTAG]])*($B18>=tblListedesclasses[BEGINNZEIT])*($B18<=tblListedesclasses[ENDZEIT]),tblListedesclasses[UNIQUE]),tblListedesclasses[UNIQUE],0),2),0)","v":0},{"$f":"IFERROR(INDEX(tblListedesclasses[],MATCH(SUMPRODUCT((tblListedesclasses[TAG]=tblHoraires[[#Headers],[FREITAG]])*($B18>=tblListedesclasses[BEGINNZEIT])*($B18<=tblListedesclasses[ENDZEIT]),tblListedesclasses[UNIQUE]),tblListedesclasses[UNIQUE],0),2),0)","v":0},{"$f":"IFERROR(INDEX(tblListedesclasses[],MATCH(SUMPRODUCT((tblListedesclasses[TAG]=tblHoraires[[#Headers],[SAMSTAG]])*($B18>=tblListedesclasses[BEGINNZEIT])*($B18<=tblListedesclasses[ENDZEIT]),tblListedesclasses[UNIQUE]),tblListedesclasses[UNIQUE],0),2),0)","v":0}]
[null,"11:30:00",{"$f":"IFERROR(INDEX(tblListedesclasses[],MATCH(SUMPRODUCT((tblListedesclasses[TAG]=tblHoraires[[#Headers],[SONNTAG]])*($B19>=tblListedesclasses[BEGINNZEIT])*($B19<=tblListedesclasses[ENDZEIT]),tblListedesclasses[UNIQUE]),tblListedesclasses[UNIQUE],0),2),0)","v":0},{"$f":"IFERROR(INDEX(tblListedesclasses[],MATCH(SUMPRODUCT((tblListedesclasses[TAG]=tblHoraires[[#Headers],[MONTAG]])*($B19>=tblListedesclasses[BEGINNZEIT])*($B19<=tblListedesclasses[ENDZEIT]),tblListedesclasses[UNIQUE]),tblListedesclasses[UNIQUE],0),2),0)","v":0},{"$f":"IFERROR(INDEX(tblListedesclasses[],MATCH(SUMPRODUCT((tblListedesclasses[TAG]=tblHoraires[[#Headers],[DIENSTAG]])*($B19>=tblListedesclasses[BEGINNZEIT])*($B19<=tblListedesclasses[ENDZEIT]),tblListedesclasses[UNIQUE]),tblListedesclasses[UNIQUE],0),2),0)","v":"Spitex"},{"$f":"IFERROR(INDEX(tblListedesclasses[],MATCH(SUMPRODUCT((tblListedesclasses[TAG]=tblHoraires[[#Headers],[MITTWOCH]])*($B19>=tblListedesclasses[BEGINNZEIT])*($B19<=tblListedesclasses[ENDZEIT]),tblListedesclasses[UNIQUE]),tblListedesclasses[UNIQUE],0),2),0)","v":0},{"$f":"IFERROR(INDEX(tblListedesclasses[],MATCH(SUMPRODUCT((tblListedesclasses[TAG]=tblHoraires[[#Headers],[DONNERSTAG]])*($B19>=tblListedesclasses[BEGINNZEIT])*($B19<=tblListedesclasses[ENDZEIT]),tblListedesclasses[UNIQUE]),tblListedesclasses[UNIQUE],0),2),0)","v":0},{"$f":"IFERROR(INDEX(tblListedesclasses[],MATCH(SUMPRODUCT((tblListedesclasses[TAG]=tblHoraires[[#Headers],[FREITAG]])*($B19>=tblListedesclasses[BEGINNZEIT])*($B19<=tblListedesclasses[ENDZEIT]),tblListedesclasses[UNIQUE]),tblListedesclasses[UNIQUE],0),2),0)","v":0},{"$f":"IFERROR(INDEX(tblListedesclasses[],MATCH(SUMPRODUCT((tblListedesclasses[TAG]=tblHoraires[[#Headers],[SAMSTAG]])*($B19>=tblListedesclasses[BEGINNZEIT])*($B19<=tblListedesclasses[ENDZEIT]),tblListedesclasses[UNIQUE]),tblListedesclasses[UNIQUE],0),2),0)","v":0}]
[null,"11:45:00",{"$f":"IFERROR(INDEX(tblListedesclasses[],MATCH(SUMPRODUCT((tblListedesclasses[TAG]=tblHoraires[[#Headers],[SONNTAG]])*($B20>=tblListedesclasses[BEGINNZEIT])*($B20<=tblListedesclasses[ENDZEIT]),tblListedesclasses[UNIQUE]),tblListedesclasses[UNIQUE],0),2),0)","v":0},{"$f":"IFERROR(INDEX(tblListedesclasses[],MATCH(SUMPRODUCT((tblListedesclasses[TAG]=tblHoraires[[#Headers],[MONTAG]])*($B20>=tblListedesclasses[BEGINNZEIT])*($B20<=tblListedesclasses[ENDZEIT]),tblListedesclasses[UNIQUE]),tblListedesclasses[UNIQUE],0),2),0)","v":0},{"$f":"IFERROR(INDEX(tblListedesclasses[],MATCH(SUMPRODUCT((tblListedesclasses[TAG]=tblHoraires[[#Headers],[DIENSTAG]])*($B20>=tblListedesclasses[BEGINNZEIT])*($B20<=tblListedesclasses[ENDZEIT]),tblListedesclasses[UNIQUE]),tblListedesclasses[UNIQUE],0),2),0)","v":"Spitex"},{"$f":"IFERROR(INDEX(tblListedesclasses[],MATCH(SUMPRODUCT((tblListedesclasses[TAG]=tblHoraires[[#Headers],[MITTWOCH]])*($B20>=tblListedesclasses[BEGINNZEIT])*($B20<=tblListedesclasses[ENDZEIT]),tblListedesclasses[UNIQUE]),tblListedesclasses[UNIQUE],0),2),0)","v":0},{"$f":"IFERROR(INDEX(tblListedesclasses[],MATCH(SUMPRODUCT((tblListedesclasses[TAG]=tblHoraires[[#Headers],[DONNERSTAG]])*($B20>=tblListedesclasses[BEGINNZEIT])*($B20<=tblListedesclasses[ENDZEIT]),tblListedesclasses[UNIQUE]),tblListedesclasses[UNIQUE],0),2),0)","v":0},{"$f":"IFERROR(INDEX(tblListedesclasses[],MATCH(SUMPRODUCT((tblListedesclasses[TAG]=tblHoraires[[#Headers],[FREITAG]])*($B20>=tblListedesclasses[BEGINNZEIT])*($B20<=tblListedesclasses[ENDZEIT]),tblListedesclasses[UNIQUE]),tblListedesclasses[UNIQUE],0),2),0)","v":0},{"$f":"IFERROR(INDEX(tblListedesclasses[],MATCH(SUMPRODUCT((tblListedesclasses[TAG]=tblHoraires[[#Headers],[SAMSTAG]])*($B20>=tblListedesclasses[BEGINNZEIT])*($B20<=tblListedesclasses[ENDZEIT]),tblListedesclasses[UNIQUE]),tblListedesclasses[UNIQUE],0),2),0)","v":0}]
[null,"12:00:00",{"$f":"IFERROR(INDEX(tblListedesclasses[],MATCH(SUMPRODUCT((tblListedesclasses[TAG]=tblHoraires[[#Headers],[SONNTAG]])*($B21>=tblListedesclasses[BEGINNZEIT])*($B21<=tblListedesclasses[ENDZEIT]),tblListedesclasses[UNIQUE]),tblListedesclasses[UNIQUE],0),2),0)","v":0},{"$f":"IFERROR(INDEX(tblListedesclasses[],MATCH(SUMPRODUCT((tblListedesclasses[TAG]=tblHoraires[[#Headers],[MONTAG]])*($B21>=tblListedesclasses[BEGINNZEIT])*($B21<=tblListedesclasses[ENDZEIT]),tblListedesclasses[UNIQUE]),tblListedesclasses[UNIQUE],0),2),0)","v":0},{"$f":"IFERROR(INDEX(tblListedesclasses[],MATCH(SUMPRODUCT((tblListedesclasses[TAG]=tblHoraires[[#Headers],[DIENSTAG]])*($B21>=tblListedesclasses[BEGINNZEIT])*($B21<=tblListedesclasses[ENDZEIT]),tblListedesclasses[UNIQUE]),tblListedesclasses[UNIQUE],0),2),0)","v":"Spitex"},{"$f":"IFERROR(INDEX(tblListedesclasses[],MATCH(SUMPRODUCT((tblListedesclasses[TAG]=tblHoraires[[#Headers],[MITTWOCH]])*($B21>=tblListedesclasses[BEGINNZEIT])*($B21<=tblListedesclasses[ENDZEIT]),tblListedesclasses[UNIQUE]),tblListedesclasses[UNIQUE],0),2),0)","v":"Kirche"},{"$f":"IFERROR(INDEX(tblListedesclasses[],MATCH(SUMPRODUCT((tblListedesclasses[TAG]=tblHoraires[[#Headers],[DONNERSTAG]])*($B21>=tblListedesclasses[BEGINNZEIT])*($B21<=tblListedesclasses[ENDZEIT]),tblListedesclasses[UNIQUE]),tblListedesclasses[UNIQUE],0),2),0)","v":0},{"$f":"IFERROR(INDEX(tblListedesclasses[],MATCH(SUMPRODUCT((tblListedesclasses[TAG]=tblHoraires[[#Headers],[FREITAG]])*($B21>=tblListedesclasses[BEGINNZEIT])*($B21<=tblListedesclasses[ENDZEIT]),tblListedesclasses[UNIQUE]),tblListedesclasses[UNIQUE],0),2),0)","v":0},{"$f":"IFERROR(INDEX(tblListedesclasses[],MATCH(SUMPRODUCT((tblListedesclasses[TAG]=tblHoraires[[#Headers],[SAMSTAG]])*($B21>=tblListedesclasses[BEGINNZEIT])*($B21<=tblListedesclasses[ENDZEIT]),tblListedesclasses[UNIQUE]),tblListedesclasses[UNIQUE],0),2),0)","v":0}]
[null,"12:15:00",{"$f":"IFERROR(INDEX(tblListedesclasses[],MATCH(SUMPRODUCT((tblListedesclasses[TAG]=tblHoraires[[#Headers],[SONNTAG]])*($B22>=tblListedesclasses[BEGINNZEIT])*($B22<=tblListedesclasses[ENDZEIT]),tblListedesclasses[UNIQUE]),tblListedesclasses[UNIQUE],0),2),0)","v":0},{"$f":"IFERROR(INDEX(tblListedesclasses[],MATCH(SUMPRODUCT((tblListedesclasses[TAG]=tblHoraires[[#Headers],[MONTAG]])*($B22>=tblListedesclasses[BEGINNZEIT])*($B22<=tblListedesclasses[ENDZEIT]),tblListedesclasses[UNIQUE]),tblListedesclasses[UNIQUE],0),2),0)","v":0},{"$f":"IFERROR(INDEX(tblListedesclasses[],MATCH(SUMPRODUCT((tblListedesclasses[TAG]=tblHoraires[[#Headers],[DIENSTAG]])*($B22>=tblListedesclasses[BEGINNZEIT])*($B22<=tblListedesclasses[ENDZEIT]),tblListedesclasses[UNIQUE]),tblListedesclasses[UNIQUE],0),2),0)","v":0},{"$f":"IFERROR(INDEX(tblListedesclasses[],MATCH(SUMPRODUCT((tblListedesclasses[TAG]=tblHoraires[[#Headers],[MITTWOCH]])*($B22>=tblListedesclasses[BEGINNZEIT])*($B22<=tblListedesclasses[ENDZEIT]),tblListedesclasses[UNIQUE]),tblListedesclasses[UNIQUE],0),2),0)","v":"Kirche"},{"$f":"IFERROR(INDEX(tblListedesclasses[],MATCH(SUMPRODUCT((tblListedesclasses[TAG]=tblHoraires[[#Headers],[DONNERSTAG]])*($B22>=tblListedesclasses[BEGINNZEIT])*($B22<=tblListedesclasses[ENDZEIT]),tblListedesclasses[UNIQUE]),tblListedesclasses[UNIQUE],0),2),0)","v":0},{"$f":"IFERROR(INDEX(tblListedesclasses[],MATCH(SUMPRODUCT((tblListedesclasses[TAG]=tblHoraires[[#Headers],[FREITAG]])*($B22>=tblListedesclasses[BEGINNZEIT])*($B22<=tblListedesclasses[ENDZEIT]),tblListedesclasses[UNIQUE]),tblListedesclasses[UNIQUE],0),2),0)","v":0},{"$f":"IFERROR(INDEX(tblListedesclasses[],MATCH(SUMPRODUCT((tblListedesclasses[TAG]=tblHoraires[[#Headers],[SAMSTAG]])*($B22>=tblListedesclasses[BEGINNZEIT])*($B22<=tblListedesclasses[ENDZEIT]),tblListedesclasses[UNIQUE]),tblListedesclasses[UNIQUE],0),2),0)","v":0}]
[null,"12:30:00",{"$f":"IFERROR(INDEX(tblListedesclasses[],MATCH(SUMPRODUCT((tblListedesclasses[TAG]=tblHoraires[[#Headers],[SONNTAG]])*($B23>=tblListedesclasses[BEGINNZEIT])*($B23<=tblListedesclasses[ENDZEIT]),tblListedesclasses[UNIQUE]),tblListedesclasses[UNIQUE],0),2),0)","v":0},{"$f":"IFERROR(INDEX(tblListedesclasses[],MATCH(SUMPRODUCT((tblListedesclasses[TAG]=tblHoraires[[#Headers],[MONTAG]])*($B23>=tblListedesclasses[BEGINNZEIT])*($B23<=tblListedesclasses[ENDZEIT]),tblListedesclasses[UNIQUE]),tblListedesclasses[UNIQUE],0),2),0)","v":"Mahlzeitendienst"},{"$f":"IFERROR(INDEX(tblListedesclasses[],MATCH(SUMPRODUCT((tblListedesclasses[TAG]=tblHoraires[[#Headers],[DIENSTAG]])*($B23>=tblListedesclasses[BEGINNZEIT])*($B23<=tblListedesclasses[ENDZEIT]),tblListedesclasses[UNIQUE]),tblListedesclasses[UNIQUE],0),2),0)","v":0},{"$f":"IFERROR(INDEX(tblListedesclasses[],MATCH(SUMPRODUCT((tblListedesclasses[TAG]=tblHoraires[[#Headers],[MITTWOCH]])*($B23>=tblListedesclasses[BEGINNZEIT])*($B23<=tblListedesclasses[ENDZEIT]),tblListedesclasses[UNIQUE]),tblListedesclasses[UNIQUE],0),2),0)","v":"Kirche"},{"$f":"IFERROR(INDEX(tblListedesclasses[],MATCH(SUMPRODUCT((tblListedesclasses[TAG]=tblHoraires[[#Headers],[DONNERSTAG]])*($B23>=tblListedesclasses[BEGINNZEIT])*($B23<=tblListedesclasses[ENDZEIT]),tblListedesclasses[UNIQUE]),tblListedesclasses[UNIQUE],0),2),0)","v":"Mahlzeitendienst"},{"$f":"IFERROR(INDEX(tblListedesclasses[],MATCH(SUMPRODUCT((tblListedesclasses[TAG]=tblHoraires[[#Headers],[FREITAG]])*($B23>=tblListedesclasses[BEGINNZEIT])*($B23<=tblListedesclasses[ENDZEIT]),tblListedesclasses[UNIQUE]),tblListedesclasses[UNIQUE],0),2),0)","v":0},{"$f":"IFERROR(INDEX(tblListedesclasses[],MATCH(SUMPRODUCT((tblListedesclasses[TAG]=tblHoraires[[#Headers],[SAMSTAG]])*($B23>=tblListedesclasses[BEGINNZEIT])*($B23<=tblListedesclasses[ENDZEIT]),tblListedesclasses[UNIQUE]),tblListedesclasses[UNIQUE],0),2),0)","v":0}]
[null,"12:45:00",{"$f":"IFERROR(INDEX(tblListedesclasses[],MATCH(SUMPRODUCT((tblListedesclasses[TAG]=tblHoraires[[#Headers],[SONNTAG]])*($B24>=tblListedesclasses[BEGINNZEIT])*($B24<=tblListedesclasses[ENDZEIT]),tblListedesclasses[UNIQUE]),tblListedesclasses[UNIQUE],0),2),0)","v":0},{"$f":"IFERROR(INDEX(tblListedesclasses[],MATCH(SUMPRODUCT((tblListedesclasses[TAG]=tblHoraires[[#Headers],[MONTAG]])*($B24>=tblListedesclasses[BEGINNZEIT])*($B24<=tblListedesclasses[ENDZEIT]),tblListedesclasses[UNIQUE]),tblListedesclasses[UNIQUE],0),2),0)","v":"Mahlzeitendienst"},{"$f":"IFERROR(INDEX(tblListedesclasses[],MATCH(SUMPRODUCT((tblListedesclasses[TAG]=tblHoraires[[#Headers],[DIENSTAG]])*($B24>=tblListedesclasses[BEGINNZEIT])*($B24<=tblListedesclasses[ENDZEIT]),tblListedesclasses[UNIQUE]),tblListedesclasses[UNIQUE],0),2),0)","v":0},{"$f":"IFERROR(INDEX(tblListedesclasses[],MATCH(SUMPRODUCT((tblListedesclasses[TAG]=tblHoraires[[#Headers],[MITTWOCH]])*($B24>=tblListedesclasses[BEGINNZEIT])*($B24<=tblListedesclasses[ENDZEIT]),tblListedesclasses[UNIQUE]),tblListedesclasses[UNIQUE],0),2),0)","v":"Kirche"},{"$f":"IFERROR(INDEX(tblListedesclasses[],MATCH(SUMPRODUCT((tblListedesclasses[TAG]=tblHoraires[[#Headers],[DONNERSTAG]])*($B24>=tblListedesclasses[BEGINNZEIT])*($B24<=tblListedesclasses[ENDZEIT]),tblListedesclasses[UNIQUE]),tblListedesclasses[UNIQUE],0),2),0)","v":"Mahlzeitendienst"},{"$f":"IFERROR(INDEX(tblListedesclasses[],MATCH(SUMPRODUCT((tblListedesclasses[TAG]=tblHoraires[[#Headers],[FREITAG]])*($B24>=tblListedesclasses[BEGINNZEIT])*($B24<=tblListedesclasses[ENDZEIT]),tblListedesclasses[UNIQUE]),tblListedesclasses[UNIQUE],0),2),0)","v":0},{"$f":"IFERROR(INDEX(tblListedesclasses[],MATCH(SUMPRODUCT((tblListedesclasses[TAG]=tblHoraires[[#Headers],[SAMSTAG]])*($B24>=tblListedesclasses[BEGINNZEIT])*($B24<=tblListedesclasses[ENDZEIT]),tblListedesclasses[UNIQUE]),tblListedesclasses[UNIQUE],0),2),0)","v":0}]
[null,"13:00:00",{"$f":"IFERROR(INDEX(tblListedesclasses[],MATCH(SUMPRODUCT((tblListedesclasses[TAG]=tblHoraires[[#Headers],[SONNTAG]])*($B25>=tblListedesclasses[BEGINNZEIT])*($B25<=tblListedesclasses[ENDZEIT]),tblListedesclasses[UNIQUE]),tblListedesclasses[UNIQUE],0),2),0)","v":0},{"$f":"IFERROR(INDEX(tblListedesclasses[],MATCH(SUMPRODUCT((tblListedesclasses[TAG]=tblHoraires[[#Headers],[MONTAG]])*($B25>=tblListedesclasses[BEGINNZEIT])*($B25<=tblListedesclasses[ENDZEIT]),tblListedesclasses[UNIQUE]),tblListedesclasses[UNIQUE],0),2),0)","v":"Mahlzeitendienst"},{"$f":"IFERROR(INDEX(tblListedesclasses[],MATCH(SUMPRODUCT((tblListedesclasses[TAG]=tblHoraires[[#Headers],[DIENSTAG]])*($B25>=tblListedesclasses[BEGINNZEIT])*($B25<=tblListedesclasses[ENDZEIT]),tblListedesclasses[UNIQUE]),tblListedesclasses[UNIQUE],0),2),0)","v":0},{"$f":"IFERROR(INDEX(tblListedesclasses[],MATCH(SUMPRODUCT((tblListedesclasses[TAG]=tblHoraires[[#Headers],[MITTWOCH]])*($B25>=tblListedesclasses[BEGINNZEIT])*($B25<=tblListedesclasses[ENDZEIT]),tblListedesclasses[UNIQUE]),tblListedesclasses[UNIQUE],0),2),0)","v":0},{"$f":"IFERROR(INDEX(tblListedesclasses[],MATCH(SUMPRODUCT((tblListedesclasses[TAG]=tblHoraires[[#Headers],[DONNERSTAG]])*($B25>=tblListedesclasses[BEGINNZEIT])*($B25<=tblListedesclasses[ENDZEIT]),tblListedesclasses[UNIQUE]),tblListedesclasses[UNIQUE],0),2),0)","v":"Mahlzeitendienst"},{"$f":"IFERROR(INDEX(tblListedesclasses[],MATCH(SUMPRODUCT((tblListedesclasses[TAG]=tblHoraires[[#Headers],[FREITAG]])*($B25>=tblListedesclasses[BEGINNZEIT])*($B25<=tblListedesclasses[ENDZEIT]),tblListedesclasses[UNIQUE]),tblListedesclasses[UNIQUE],0),2),0)","v":0},{"$f":"IFERROR(INDEX(tblListedesclasses[],MATCH(SUMPRODUCT((tblListedesclasses[TAG]=tblHoraires[[#Headers],[SAMSTAG]])*($B25>=tblListedesclasses[BEGINNZEIT])*($B25<=tblListedesclasses[ENDZEIT]),tblListedesclasses[UNIQUE]),tblListedesclasses[UNIQUE],0),2),0)","v":0}]
[null,"13:15:00",{"$f":"IFERROR(INDEX(tblListedesclasses[],MATCH(SUMPRODUCT((tblListedesclasses[TAG]=tblHoraires[[#Headers],[SONNTAG]])*($B26>=tblListedesclasses[BEGINNZEIT])*($B26<=tblListedesclasses[ENDZEIT]),tblListedesclasses[UNIQUE]),tblListedesclasses[UNIQUE],0),2),0)","v":0},{"$f":"IFERROR(INDEX(tblListedesclasses[],MATCH(SUMPRODUCT((tblListedesclasses[TAG]=tblHoraires[[#Headers],[MONTAG]])*($B26>=tblListedesclasses[BEGINNZEIT])*($B26<=tblListedesclasses[ENDZEIT]),tblListedesclasses[UNIQUE]),tblListedesclasses[UNIQUE],0),2),0)","v":0},{"$f":"IFERROR(INDEX(tblListedesclasses[],MATCH(SUMPRODUCT((tblListedesclasses[TAG]=tblHoraires[[#Headers],[DIENSTAG]])*($B26>=tblListedesclasses[BEGINNZEIT])*($B26<=tblListedesclasses[ENDZEIT]),tblListedesclasses[UNIQUE]),tblListedesclasses[UNIQUE],0),2),0)","v":0},{"$f":"IFERROR(INDEX(tblListedesclasses[],MATCH(SUMPRODUCT((tblListedesclasses[TAG]=tblHoraires[[#Headers],[MITTWOCH]])*($B26>=tblListedesclasses[BEGINNZEIT])*($B26<=tblListedesclasses[ENDZEIT]),tblListedesclasses[UNIQUE]),tblListedesclasses[UNIQUE],0),2),0)","v":0},{"$f":"IFERROR(INDEX(tblListedesclasses[],MATCH(SUMPRODUCT((tblListedesclasses[TAG]=tblHoraires[[#Headers],[DONNERSTAG]])*($B26>=tblListedesclasses[BEGINNZEIT])*($B26<=tblListedesclasses[ENDZEIT]),tblListedesclasses[UNIQUE]),tblListedesclasses[UNIQUE],0),2),0)","v":0},{"$f":"IFERROR(INDEX(tblListedesclasses[],MATCH(SUMPRODUCT((tblListedesclasses[TAG]=tblHoraires[[#Headers],[FREITAG]])*($B26>=tblListedesclasses[BEGINNZEIT])*($B26<=tblListedesclasses[ENDZEIT]),tblListedesclasses[UNIQUE]),tblListedesclasses[UNIQUE],0),2),0)","v":0},{"$f":"IFERROR(INDEX(tblListedesclasses[],MATCH(SUMPRODUCT((tblListedesclasses[TAG]=tblHoraires[[#Headers],[SAMSTAG]])*($B26>=tblListedesclasses[BEGINNZEIT])*($B26<=tblListedesclasses[ENDZEIT]),tblListedesclasses[UNIQUE]),tblListedesclasses[UNIQUE],0),2),0)","v":0}]
[null,"13:30:00",{"$f":"IFERROR(INDEX(tblListedesclasses[],MATCH(SUMPRODUCT((tblListedesclasses[TAG]=tblHoraires[[#Headers],[SONNTAG]])*($B27>=tblListedesclasses[BEGINNZEIT])*($B27<=tblListedesclasses[ENDZEIT]),tblListedesclasses[UNIQUE]),tblListedesclasses[UNIQUE],0),2),0)","v":0},{"$f":"IFERROR(INDEX(tblListedesclasses[],MATCH(SUMPRODUCT((tblListedesclasses[TAG]=tblHoraires[[#Headers],[MONTAG]])*($B27>=tblListedesclasses[BEGINNZEIT])*($B27<=tblListedesclasses[ENDZEIT]),tblListedesclasses[UNIQUE]),tblListedesclasses[UNIQUE],0),2),0)","v":0},{"$f":"IFERROR(INDEX(tblListedesclasses[],MATCH(SUMPRODUCT((tblListedesclasses[TAG]=tblHoraires[[#Headers],[DIENSTAG]])*($B27>=tblListedesclasses[BEGINNZEIT])*($B27<=tblListedesclasses[ENDZEIT]),tblListedesclasses[UNIQUE]),tblListedesclasses[UNIQUE],0),2),0)","v":0},{"$f":"IFERROR(INDEX(tblListedesclasses[],MATCH(SUMPRODUCT((tblListedesclasses[TAG]=tblHoraires[[#Headers],[MITTWOCH]])*($B27>=tblListedesclasses[BEGINNZEIT])*($B27<=tblListedesclasses[ENDZEIT]),tblListedesclasses[UNIQUE]),tblListedesclasses[UNIQUE],0),2),0)","v":0},{"$f":"IFERROR(INDEX(tblListedesclasses[],MATCH(SUMPRODUCT((tblListedesclasses[TAG]=tblHoraires[[#Headers],[DONNERSTAG]])*($B27>=tblListedesclasses[BEGINNZEIT])*($B27<=tblListedesclasses[ENDZEIT]),tblListedesclasses[UNIQUE]),tblListedesclasses[UNIQUE],0),2),0)","v":0},{"$f":"IFERROR(INDEX(tblListedesclasses[],MATCH(SUMPRODUCT((tblListedesclasses[TAG]=tblHoraires[[#Headers],[FREITAG]])*($B27>=tblListedesclasses[BEGINNZEIT])*($B27<=tblListedesclasses[ENDZEIT]),tblListedesclasses[UNIQUE]),tblListedesclasses[UNIQUE],0),2),0)","v":0},{"$f":"IFERROR(INDEX(tblListedesclasses[],MATCH(SUMPRODUCT((tblListedesclasses[TAG]=tblHoraires[[#Headers],[SAMSTAG]])*($B27>=tblListedesclasses[BEGINNZEIT])*($B27<=tblListedesclasses[ENDZEIT]),tblListedesclasses[UNIQUE]),tblListedesclasses[UNIQUE],0),2),0)","v":"ProSenectute"}]
[null,"13:45:00",{"$f":"IFERROR(INDEX(tblListedesclasses[],MATCH(SUMPRODUCT((tblListedesclasses[TAG]=tblHoraires[[#Headers],[SONNTAG]])*($B28>=tblListedesclasses[BEGINNZEIT])*($B28<=tblListedesclasses[ENDZEIT]),tblListedesclasses[UNIQUE]),tblListedesclasses[UNIQUE],0),2),0)","v":0},{"$f":"IFERROR(INDEX(tblListedesclasses[],MATCH(SUMPRODUCT((tblListedesclasses[TAG]=tblHoraires[[#Headers],[MONTAG]])*($B28>=tblListedesclasses[BEGINNZEIT])*($B28<=tblListedesclasses[ENDZEIT]),tblListedesclasses[UNIQUE]),tblListedesclasses[UNIQUE],0),2),0)","v":0},{"$f":"IFERROR(INDEX(tblListedesclasses[],MATCH(SUMPRODUCT((tblListedesclasses[TAG]=tblHoraires[[#Headers],[DIENSTAG]])*($B28>=tblListedesclasses[BEGINNZEIT])*($B28<=tblListedesclasses[ENDZEIT]),tblListedesclasses[UNIQUE]),tblListedesclasses[UNIQUE],0),2),0)","v":0},{"$f":"IFERROR(INDEX(tblListedesclasses[],MATCH(SUMPRODUCT((tblListedesclasses[TAG]=tblHoraires[[#Headers],[MITTWOCH]])*($B28>=tblListedesclasses[BEGINNZEIT])*($B28<=tblListedesclasses[ENDZEIT]),tblListedesclasses[UNIQUE]),tblListedesclasses[UNIQUE],0),2),0)","v":0},{"$f":"IFERROR(INDEX(tblListedesclasses[],MATCH(SUMPRODUCT((tblListedesclasses[TAG]=tblHoraires[[#Headers],[DONNERSTAG]])*($B28>=tblListedesclasses[BEGINNZEIT])*($B28<=tblListedesclasses[ENDZEIT]),tblListedesclasses[UNIQUE]),tblListedesclasses[UNIQUE],0),2),0)","v":0},{"$f":"IFERROR(INDEX(tblListedesclasses[],MATCH(SUMPRODUCT((tblListedesclasses[TAG]=tblHoraires[[#Headers],[FREITAG]])*($B28>=tblListedesclasses[BEGINNZEIT])*($B28<=tblListedesclasses[ENDZEIT]),tblListedesclasses[UNIQUE]),tblListedesclasses[UNIQUE],0),2),0)","v":0},{"$f":"IFERROR(INDEX(tblListedesclasses[],MATCH(SUMPRODUCT((tblListedesclasses[TAG]=tblHoraires[[#Headers],[SAMSTAG]])*($B28>=tblListedesclasses[BEGINNZEIT])*($B28<=tblListedesclasses[ENDZEIT]),tblListedesclasses[UNIQUE]),tblListedesclasses[UNIQUE],0),2),0)","v":"ProSenectute"}]
[null,"14:00:00",{"$f":"IFERROR(INDEX(tblListedesclasses[],MATCH(SUMPRODUCT((tblListedesclasses[TAG]=tblHoraires[[#Headers],[SONNTAG]])*($B29>=tblListedesclasses[BEGINNZEIT])*($B29<=tblListedesclasses[ENDZEIT]),tblListedesclasses[UNIQUE]),tblListedesclasses[UNIQUE],0),2),0)","v":0},{"$f":"IFERROR(INDEX(tblListedesclasses[],MATCH(SUMPRODUCT((tblListedesclasses[TAG]=tblHoraires[[#Headers],[MONTAG]])*($B29>=tblListedesclasses[BEGINNZEIT])*($B29<=tblListedesclasses[ENDZEIT]),tblListedesclasses[UNIQUE]),tblListedesclasses[UNIQUE],0),2),0)","v":0},{"$f":"IFERROR(INDEX(tblListedesclasses[],MATCH(SUMPRODUCT((tblListedesclasses[TAG]=tblHoraires[[#Headers],[DIENSTAG]])*($B29>=tblListedesclasses[BEGINNZEIT])*($B29<=tblListedesclasses[ENDZEIT]),tblListedesclasses[UNIQUE]),tblListedesclasses[UNIQUE],0),2),0)","v":0},{"$f":"IFERROR(INDEX(tblListedesclasses[],MATCH(SUMPRODUCT((tblListedesclasses[TAG]=tblHoraires[[#Headers],[MITTWOCH]])*($B29>=tblListedesclasses[BEGINNZEIT])*($B29<=tblListedesclasses[ENDZEIT]),tblListedesclasses[UNIQUE]),tblListedesclasses[UNIQUE],0),2),0)","v":0},{"$f":"IFERROR(INDEX(tblListedesclasses[],MATCH(SUMPRODUCT((tblListedesclasses[TAG]=tblHoraires[[#Headers],[DONNERSTAG]])*($B29>=tblListedesclasses[BEGINNZEIT])*($B29<=tblListedesclasses[ENDZEIT]),tblListedesclasses[UNIQUE]),tblListedesclasses[UNIQUE],0),2),0)","v":0},{"$f":"IFERROR(INDEX(tblListedesclasses[],MATCH(SUMPRODUCT((tblListedesclasses[TAG]=tblHoraires[[#Headers],[FREITAG]])*($B29>=tblListedesclasses[BEGINNZEIT])*($B29<=tblListedesclasses[ENDZEIT]),tblListedesclasses[UNIQUE]),tblListedesclasses[UNIQUE],0),2),0)","v":0},{"$f":"IFERROR(INDEX(tblListedesclasses[],MATCH(SUMPRODUCT((tblListedesclasses[TAG]=tblHoraires[[#Headers],[SAMSTAG]])*($B29>=tblListedesclasses[BEGINNZEIT])*($B29<=tblListedesclasses[ENDZEIT]),tblListedesclasses[UNIQUE]),tblListedesclasses[UNIQUE],0),2),0)","v":"ProSenectute"}]
[null,"14:15:00",{"$f":"IFERROR(INDEX(tblListedesclasses[],MATCH(SUMPRODUCT((tblListedesclasses[TAG]=tblHoraires[[#Headers],[SONNTAG]])*($B30>=tblListedesclasses[BEGINNZEIT])*($B30<=tblListedesclasses[ENDZEIT]),tblListedesclasses[UNIQUE]),tblListedesclasses[UNIQUE],0),2),0)","v":0},{"$f":"IFERROR(INDEX(tblListedesclasses[],MATCH(SUMPRODUCT((tblListedesclasses[TAG]=tblHoraires[[#Headers],[MONTAG]])*($B30>=tblListedesclasses[BEGINNZEIT])*($B30<=tblListedesclasses[ENDZEIT]),tblListedesclasses[UNIQUE]),tblListedesclasses[UNIQUE],0),2),0)","v":0},{"$f":"IFERROR(INDEX(tblListedesclasses[],MATCH(SUMPRODUCT((tblListedesclasses[TAG]=tblHoraires[[#Headers],[DIENSTAG]])*($B30>=tblListedesclasses[BEGINNZEIT])*($B30<=tblListedesclasses[ENDZEIT]),tblListedesclasses[UNIQUE]),tblListedesclasses[UNIQUE],0),2),0)","v":0},{"$f":"IFERROR(INDEX(tblListedesclasses[],MATCH(SUMPRODUCT((tblListedesclasses[TAG]=tblHoraires[[#Headers],[MITTWOCH]])*($B30>=tblListedesclasses[BEGINNZEIT])*($B30<=tblListedesclasses[ENDZEIT]),tblListedesclasses[UNIQUE]),tblListedesclasses[UNIQUE],0),2),0)","v":"Charles"},{"$f":"IFERROR(INDEX(tblListedesclasses[],MATCH(SUMPRODUCT((tblListedesclasses[TAG]=tblHoraires[[#Headers],[DONNERSTAG]])*($B30>=tblListedesclasses[BEGINNZEIT])*($B30<=tblListedesclasses[ENDZEIT]),tblListedesclasses[UNIQUE]),tblListedesclasses[UNIQUE],0),2),0)","v":0},{"$f":"IFERROR(INDEX(tblListedesclasses[],MATCH(SUMPRODUCT((tblListedesclasses[TAG]=tblHoraires[[#Headers],[FREITAG]])*($B30>=tblListedesclasses[BEGINNZEIT])*($B30<=tblListedesclasses[ENDZEIT]),tblListedesclasses[UNIQUE]),tblListedesclasses[UNIQUE],0),2),0)","v":0},{"$f":"IFERROR(INDEX(tblListedesclasses[],MATCH(SUMPRODUCT((tblListedesclasses[TAG]=tblHoraires[[#Headers],[SAMSTAG]])*($B30>=tblListedesclasses[BEGINNZEIT])*($B30<=tblListedesclasses[ENDZEIT]),tblListedesclasses[UNIQUE]),tblListedesclasses[UNIQUE],0),2),0)","v":"ProSenectute"}]
[null,"14:30:00",{"$f":"IFERROR(INDEX(tblListedesclasses[],MATCH(SUMPRODUCT((tblListedesclasses[TAG]=tblHoraires[[#Headers],[SONNTAG]])*($B31>=tblListedesclasses[BEGINNZEIT])*($B31<=tblListedesclasses[ENDZEIT]),tblListedesclasses[UNIQUE]),tblListedesclasses[UNIQUE],0),2),0)","v":0},{"$f":"IFERROR(INDEX(tblListedesclasses[],MATCH(SUMPRODUCT((tblListedesclasses[TAG]=tblHoraires[[#Headers],[MONTAG]])*($B31>=tblListedesclasses[BEGINNZEIT])*($B31<=tblListedesclasses[ENDZEIT]),tblListedesclasses[UNIQUE]),tblListedesclasses[UNIQUE],0),2),0)","v":0},{"$f":"IFERROR(INDEX(tblListedesclasses[],MATCH(SUMPRODUCT((tblListedesclasses[TAG]=tblHoraires[[#Headers],[DIENSTAG]])*($B31>=tblListedesclasses[BEGINNZEIT])*($B31<=tblListedesclasses[ENDZEIT]),tblListedesclasses[UNIQUE]),tblListedesclasses[UNIQUE],0),2),0)","v":0},{"$f":"IFERROR(INDEX(tblListedesclasses[],MATCH(SUMPRODUCT((tblListedesclasses[TAG]=tblHoraires[[#Headers],[MITTWOCH]])*($B31>=tblListedesclasses[BEGINNZEIT])*($B31<=tblListedesclasses[ENDZEIT]),tblListedesclasses[UNIQUE]),tblListedesclasses[UNIQUE],0),2),0)","v":"Charles"},{"$f":"IFERROR(INDEX(tblListedesclasses[],MATCH(SUMPRODUCT((tblListedesclasses[TAG]=tblHoraires[[#Headers],[DONNERSTAG]])*($B31>=tblListedesclasses[BEGINNZEIT])*($B31<=tblListedesclasses[ENDZEIT]),tblListedesclasses[UNIQUE]),tblListedesclasses[UNIQUE],0),2),0)","v":0},{"$f":"IFERROR(INDEX(tblListedesclasses[],MATCH(SUMPRODUCT((tblListedesclasses[TAG]=tblHoraires[[#Headers],[FREITAG]])*($B31>=tblListedesclasses[BEGINNZEIT])*($B31<=tblListedesclasses[ENDZEIT]),tblListedesclasses[UNIQUE]),tblListedesclasses[UNIQUE],0),2),0)","v":0},{"$f":"IFERROR(INDEX(tblListedesclasses[],MATCH(SUMPRODUCT((tblListedesclasses[TAG]=tblHoraires[[#Headers],[SAMSTAG]])*($B31>=tblListedesclasses[BEGINNZEIT])*($B31<=tblListedesclasses[ENDZEIT]),tblListedesclasses[UNIQUE]),tblListedesclasses[UNIQUE],0),2),0)","v":"ProSenectute"}]
[null,"14:45:00",{"$f":"IFERROR(INDEX(tblListedesclasses[],MATCH(SUMPRODUCT((tblListedesclasses[TAG]=tblHoraires[[#Headers],[SONNTAG]])*($B32>=tblListedesclasses[BEGINNZEIT])*($B32<=tblListedesclasses[ENDZEIT]),tblListedesclasses[UNIQUE]),tblListedesclasses[UNIQUE],0),2),0)","v":0},{"$f":"IFERROR(INDEX(tblListedesclasses[],MATCH(SUMPRODUCT((tblListedesclasses[TAG]=tblHoraires[[#Headers],[MONTAG]])*($B32>=tblListedesclasses[BEGINNZEIT])*($B32<=tblListedesclasses[ENDZEIT]),tblListedesclasses[UNIQUE]),tblListedesclasses[UNIQUE],0),2),0)","v":0},{"$f":"IFERROR(INDEX(tblListedesclasses[],MATCH(SUMPRODUCT((tblListedesclasses[TAG]=tblHoraires[[#Headers],[DIENSTAG]])*($B32>=tblListedesclasses[BEGINNZEIT])*($B32<=tblListedesclasses[ENDZEIT]),tblListedesclasses[UNIQUE]),tblListedesclasses[UNIQUE],0),2),0)","v":0},{"$f":"IFERROR(INDEX(tblListedesclasses[],MATCH(SUMPRODUCT((tblListedesclasses[TAG]=tblHoraires[[#Headers],[MITTWOCH]])*($B32>=tblListedesclasses[BEGINNZEIT])*($B32<=tblListedesclasses[ENDZEIT]),tblListedesclasses[UNIQUE]),tblListedesclasses[UNIQUE],0),2),0)","v":"Charles"},{"$f":"IFERROR(INDEX(tblListedesclasses[],MATCH(SUMPRODUCT((tblListedesclasses[TAG]=tblHoraires[[#Headers],[DONNERSTAG]])*($B32>=tblListedesclasses[BEGINNZEIT])*($B32<=tblListedesclasses[ENDZEIT]),tblListedesclasses[UNIQUE]),tblListedesclasses[UNIQUE],0),2),0)","v":0},{"$f":"IFERROR(INDEX(tblListedesclasses[],MATCH(SUMPRODUCT((tblListedesclasses[TAG]=tblHoraires[[#Headers],[FREITAG]])*($B32>=tblListedesclasses[BEGINNZEIT])*($B32<=tblListedesclasses[ENDZEIT]),tblListedesclasses[UNIQUE]),tblListedesclasses[UNIQUE],0),2),0)","v":0},{"$f":"IFERROR(INDEX(tblListedesclasses[],MATCH(SUMPRODUCT((tblListedesclasses[TAG]=tblHoraires[[#Headers],[SAMSTAG]])*($B32>=tblListedesclasses[BEGINNZEIT])*($B32<=tblListedesclasses[ENDZEIT]),tblListedesclasses[UNIQUE]),tblListedesclasses[UNIQUE],0),2),0)","v":"ProSenectute"}]
[null,"15:00:00",{"$f":"IFERROR(INDEX(tblListedesclasses[],MATCH(SUMPRODUCT((tblListedesclasses[TAG]=tblHoraires[[#Headers],[SONNTAG]])*($B33>=tblListedesclasses[BEGINNZEIT])*($B33<=tblListedesclasses[ENDZEIT]),tblListedesclasses[UNIQUE]),tblListedesclasses[UNIQUE],0),2),0)","v":0},{"$f":"IFERROR(INDEX(tblListedesclasses[],MATCH(SUMPRODUCT((tblListedesclasses[TAG]=tblHoraires[[#Headers],[MONTAG]])*($B33>=tblListedesclasses[BEGINNZEIT])*($B33<=tblListedesclasses[ENDZEIT]),tblListedesclasses[UNIQUE]),tblListedesclasses[UNIQUE],0),2),0)","v":0},{"$f":"IFERROR(INDEX(tblListedesclasses[],MATCH(SUMPRODUCT((tblListedesclasses[TAG]=tblHoraires[[#Headers],[DIENSTAG]])*($B33>=tblListedesclasses[BEGINNZEIT])*($B33<=tblListedesclasses[ENDZEIT]),tblListedesclasses[UNIQUE]),tblListedesclasses[UNIQUE],0),2),0)","v":0},{"$f":"IFERROR(INDEX(tblListedesclasses[],MATCH(SUMPRODUCT((tblListedesclasses[TAG]=tblHoraires[[#Headers],[MITTWOCH]])*($B33>=tblListedesclasses[BEGINNZEIT])*($B33<=tblListedesclasses[ENDZEIT]),tblListedesclasses[UNIQUE]),tblListedesclasses[UNIQUE],0),2),0)","v":"Charles"},{"$f":"IFERROR(INDEX(tblListedesclasses[],MATCH(SUMPRODUCT((tblListedesclasses[TAG]=tblHoraires[[#Headers],[DONNERSTAG]])*($B33>=tblListedesclasses[BEGINNZEIT])*($B33<=tblListedesclasses[ENDZEIT]),tblListedesclasses[UNIQUE]),tblListedesclasses[UNIQUE],0),2),0)","v":0},{"$f":"IFERROR(INDEX(tblListedesclasses[],MATCH(SUMPRODUCT((tblListedesclasses[TAG]=tblHoraires[[#Headers],[FREITAG]])*($B33>=tblListedesclasses[BEGINNZEIT])*($B33<=tblListedesclasses[ENDZEIT]),tblListedesclasses[UNIQUE]),tblListedesclasses[UNIQUE],0),2),0)","v":0},{"$f":"IFERROR(INDEX(tblListedesclasses[],MATCH(SUMPRODUCT((tblListedesclasses[TAG]=tblHoraires[[#Headers],[SAMSTAG]])*($B33>=tblListedesclasses[BEGINNZEIT])*($B33<=tblListedesclasses[ENDZEIT]),tblListedesclasses[UNIQUE]),tblListedesclasses[UNIQUE],0),2),0)","v":"ProSenectute"}]
[null,"15:15:00",{"$f":"IFERROR(INDEX(tblListedesclasses[],MATCH(SUMPRODUCT((tblListedesclasses[TAG]=tblHoraires[[#Headers],[SONNTAG]])*($B34>=tblListedesclasses[BEGINNZEIT])*($B34<=tblListedesclasses[ENDZEIT]),tblListedesclasses[UNIQUE]),tblListedesclasses[UNIQUE],0),2),0)","v":0},{"$f":"IFERROR(INDEX(tblListedesclasses[],MATCH(SUMPRODUCT((tblListedesclasses[TAG]=tblHoraires[[#Headers],[MONTAG]])*($B34>=tblListedesclasses[BEGINNZEIT])*($B34<=tblListedesclasses[ENDZEIT]),tblListedesclasses[UNIQUE]),tblListedesclasses[UNIQUE],0),2),0)","v":0},{"$f":"IFERROR(INDEX(tblListedesclasses[],MATCH(SUMPRODUCT((tblListedesclasses[TAG]=tblHoraires[[#Headers],[DIENSTAG]])*($B34>=tblListedesclasses[BEGINNZEIT])*($B34<=tblListedesclasses[ENDZEIT]),tblListedesclasses[UNIQUE]),tblListedesclasses[UNIQUE],0),2),0)","v":0},{"$f":"IFERROR(INDEX(tblListedesclasses[],MATCH(SUMPRODUCT((tblListedesclasses[TAG]=tblHoraires[[#Headers],[MITTWOCH]])*($B34>=tblListedesclasses[BEGINNZEIT])*($B34<=tblListedesclasses[ENDZEIT]),tblListedesclasses[UNIQUE]),tblListedesclasses[UNIQUE],0),2),0)","v":0},{"$f":"IFERROR(INDEX(tblListedesclasses[],MATCH(SUMPRODUCT((tblListedesclasses[TAG]=tblHoraires[[#Headers],[DONNERSTAG]])*($B34>=tblListedesclasses[BEGINNZEIT])*($B34<=tblListedesclasses[ENDZEIT]),tblListedesclasses[UNIQUE]),tblListedesclasses[UNIQUE],0),2),0)","v":0},{"$f":"IFERROR(INDEX(tblListedesclasses[],MATCH(SUMPRODUCT((tblListedesclasses[TAG]=tblHoraires[[#Headers],[FREITAG]])*($B34>=tblListedesclasses[BEGINNZEIT])*($B34<=tblListedesclasses[ENDZEIT]),tblListedesclasses[UNIQUE]),tblListedesclasses[UNIQUE],0),2),0)","v":0},{"$f":"IFERROR(INDEX(tblListedesclasses[],MATCH(SUMPRODUCT((tblListedesclasses[TAG]=tblHoraires[[#Headers],[SAMSTAG]])*($B34>=tblListedesclasses[BEGINNZEIT])*($B34<=tblListedesclasses[ENDZEIT]),tblListedesclasses[UNIQUE]),tblListedesclasses[UNIQUE],0),2),0)","v":0}]
[null,"15:30:00",{"$f":"IFERROR(INDEX(tblListedesclasses[],MATCH(SUMPRODUCT((tblListedesclasses[TAG]=tblHoraires[[#Headers],[SONNTAG]])*($B35>=tblListedesclasses[BEGINNZEIT])*($B35<=tblListedesclasses[ENDZEIT]),tblListedesclasses[UNIQUE]),tblListedesclasses[UNIQUE],0),2),0)","v":0},{"$f":"IFERROR(INDEX(tblListedesclasses[],MATCH(SUMPRODUCT((tblListedesclasses[TAG]=tblHoraires[[#Headers],[MONTAG]])*($B35>=tblListedesclasses[BEGINNZEIT])*($B35<=tblListedesclasses[ENDZEIT]),tblListedesclasses[UNIQUE]),tblListedesclasses[UNIQUE],0),2),0)","v":0},{"$f":"IFERROR(INDEX(tblListedesclasses[],MATCH(SUMPRODUCT((tblListedesclasses[TAG]=tblHoraires[[#Headers],[DIENSTAG]])*($B35>=tblListedesclasses[BEGINNZEIT])*($B35<=tblListedesclasses[ENDZEIT]),tblListedesclasses[UNIQUE]),tblListedesclasses[UNIQUE],0),2),0)","v":0},{"$f":"IFERROR(INDEX(tblListedesclasses[],MATCH(SUMPRODUCT((tblListedesclasses[TAG]=tblHoraires[[#Headers],[MITTWOCH]])*($B35>=tblListedesclasses[BEGINNZEIT])*($B35<=tblListedesclasses[ENDZEIT]),tblListedesclasses[UNIQUE]),tblListedesclasses[UNIQUE],0),2),0)","v":0},{"$f":"IFERROR(INDEX(tblListedesclasses[],MATCH(SUMPRODUCT((tblListedesclasses[TAG]=tblHoraires[[#Headers],[DONNERSTAG]])*($B35>=tblListedesclasses[BEGINNZEIT])*($B35<=tblListedesclasses[ENDZEIT]),tblListedesclasses[UNIQUE]),tblListedesclasses[UNIQUE],0),2),0)","v":0},{"$f":"IFERROR(INDEX(tblListedesclasses[],MATCH(SUMPRODUCT((tblListedesclasses[TAG]=tblHoraires[[#Headers],[FREITAG]])*($B35>=tblListedesclasses[BEGINNZEIT])*($B35<=tblListedesclasses[ENDZEIT]),tblListedesclasses[UNIQUE]),tblListedesclasses[UNIQUE],0),2),0)","v":0},{"$f":"IFERROR(INDEX(tblListedesclasses[],MATCH(SUMPRODUCT((tblListedesclasses[TAG]=tblHoraires[[#Headers],[SAMSTAG]])*($B35>=tblListedesclasses[BEGINNZEIT])*($B35<=tblListedesclasses[ENDZEIT]),tblListedesclasses[UNIQUE]),tblListedesclasses[UNIQUE],0),2),0)","v":0}]
[null,"15:45:00",{"$f":"IFERROR(INDEX(tblListedesclasses[],MATCH(SUMPRODUCT((tblListedesclasses[TAG]=tblHoraires[[#Headers],[SONNTAG]])*($B36>=tblListedesclasses[BEGINNZEIT])*($B36<=tblListedesclasses[ENDZEIT]),tblListedesclasses[UNIQUE]),tblListedesclasses[UNIQUE],0),2),0)","v":0},{"$f":"IFERROR(INDEX(tblListedesclasses[],MATCH(SUMPRODUCT((tblListedesclasses[TAG]=tblHoraires[[#Headers],[MONTAG]])*($B36>=tblListedesclasses[BEGINNZEIT])*($B36<=tblListedesclasses[ENDZEIT]),tblListedesclasses[UNIQUE]),tblListedesclasses[UNIQUE],0),2),0)","v":0},{"$f":"IFERROR(INDEX(tblListedesclasses[],MATCH(SUMPRODUCT((tblListedesclasses[TAG]=tblHoraires[[#Headers],[DIENSTAG]])*($B36>=tblListedesclasses[BEGINNZEIT])*($B36<=tblListedesclasses[ENDZEIT]),tblListedesclasses[UNIQUE]),tblListedesclasses[UNIQUE],0),2),0)","v":0},{"$f":"IFERROR(INDEX(tblListedesclasses[],MATCH(SUMPRODUCT((tblListedesclasses[TAG]=tblHoraires[[#Headers],[MITTWOCH]])*($B36>=tblListedesclasses[BEGINNZEIT])*($B36<=tblListedesclasses[ENDZEIT]),tblListedesclasses[UNIQUE]),tblListedesclasses[UNIQUE],0),2),0)","v":0},{"$f":"IFERROR(INDEX(tblListedesclasses[],MATCH(SUMPRODUCT((tblListedesclasses[TAG]=tblHoraires[[#Headers],[DONNERSTAG]])*($B36>=tblListedesclasses[BEGINNZEIT])*($B36<=tblListedesclasses[ENDZEIT]),tblListedesclasses[UNIQUE]),tblListedesclasses[UNIQUE],0),2),0)","v":0},{"$f":"IFERROR(INDEX(tblListedesclasses[],MATCH(SUMPRODUCT((tblListedesclasses[TAG]=tblHoraires[[#Headers],[FREITAG]])*($B36>=tblListedesclasses[BEGINNZEIT])*($B36<=tblListedesclasses[ENDZEIT]),tblListedesclasses[UNIQUE]),tblListedesclasses[UNIQUE],0),2),0)","v":0},{"$f":"IFERROR(INDEX(tblListedesclasses[],MATCH(SUMPRODUCT((tblListedesclasses[TAG]=tblHoraires[[#Headers],[SAMSTAG]])*($B36>=tblListedesclasses[BEGINNZEIT])*($B36<=tblListedesclasses[ENDZEIT]),tblListedesclasses[UNIQUE]),tblListedesclasses[UNIQUE],0),2),0)","v":0}]
[null,"16:00:00",{"$f":"IFERROR(INDEX(tblListedesclasses[],MATCH(SUMPRODUCT((tblListedesclasses[TAG]=tblHoraires[[#Headers],[SONNTAG]])*($B37>=tblListedesclasses[BEGINNZEIT])*($B37<=tblListedesclasses[ENDZEIT]),tblListedesclasses[UNIQUE]),tblListedesclasses[UNIQUE],0),2),0)","v":0},{"$f":"IFERROR(INDEX(tblListedesclasses[],MATCH(SUMPRODUCT((tblListedesclasses[TAG]=tblHoraires[[#Headers],[MONTAG]])*($B37>=tblListedesclasses[BEGINNZEIT])*($B37<=tblListedesclasses[ENDZEIT]),tblListedesclasses[UNIQUE]),tblListedesclasses[UNIQUE],0),2),0)","v":0},{"$f":"IFERROR(INDEX(tblListedesclasses[],MATCH(SUMPRODUCT((tblListedesclasses[TAG]=tblHoraires[[#Headers],[DIENSTAG]])*($B37>=tblListedesclasses[BEGINNZEIT])*($B37<=tblListedesclasses[ENDZEIT]),tblListedesclasses[UNIQUE]),tblListedesclasses[UNIQUE],0),2),0)","v":0},{"$f":"IFERROR(INDEX(tblListedesclasses[],MATCH(SUMPRODUCT((tblListedesclasses[TAG]=tblHoraires[[#Headers],[MITTWOCH]])*($B37>=tblListedesclasses[BEGINNZEIT])*($B37<=tblListedesclasses[ENDZEIT]),tblListedesclasses[UNIQUE]),tblListedesclasses[UNIQUE],0),2),0)","v":0},{"$f":"IFERROR(INDEX(tblListedesclasses[],MATCH(SUMPRODUCT((tblListedesclasses[TAG]=tblHoraires[[#Headers],[DONNERSTAG]])*($B37>=tblListedesclasses[BEGINNZEIT])*($B37<=tblListedesclasses[ENDZEIT]),tblListedesclasses[UNIQUE]),tblListedesclasses[UNIQUE],0),2),0)","v":0},{"$f":"IFERROR(INDEX(tblListedesclasses[],MATCH(SUMPRODUCT((tblListedesclasses[TAG]=tblHoraires[[#Headers],[FREITAG]])*($B37>=tblListedesclasses[BEGINNZEIT])*($B37<=tblListedesclasses[ENDZEIT]),tblListedesclasses[UNIQUE]),tblListedesclasses[UNIQUE],0),2),0)","v":0},{"$f":"IFERROR(INDEX(tblListedesclasses[],MATCH(SUMPRODUCT((tblListedesclasses[TAG]=tblHoraires[[#Headers],[SAMSTAG]])*($B37>=tblListedesclasses[BEGINNZEIT])*($B37<=tblListedesclasses[ENDZEIT]),tblListedesclasses[UNIQUE]),tblListedesclasses[UNIQUE],0),2),0)","v":0}]
[null,"16:15:00",{"$f":"IFERROR(INDEX(tblListedesclasses[],MATCH(SUMPRODUCT((tblListedesclasses[TAG]=tblHoraires[[#Headers],[SONNTAG]])*($B38>=tblListedesclasses[BEGINNZEIT])*($B38<=tblListedesclasses[ENDZEIT]),tblListedesclasses[UNIQUE]),tblListedesclasses[UNIQUE],0),2),0)","v":0},{"$f":"IFERROR(INDEX(tblListedesclasses[],MATCH(SUMPRODUCT((tblListedesclasses[TAG]=tblHoraires[[#Headers],[MONTAG]])*($B38>=tblListedesclasses[BEGINNZEIT])*($B38<=tblListedesclasses[ENDZEIT]),tblListedesclasses[UNIQUE]),tblListedesclasses[UNIQUE],0),2),0)","v":"Maria"},{"$f":"IFERROR(INDEX(tblListedesclasses[],MATCH(SUMPRODUCT((tblListedesclasses[TAG]=tblHoraires[[#Headers],[DIENSTAG]])*($B38>=tblListedesclasses[BEGINNZEIT])*($B38<=tblListedesclasses[ENDZEIT]),tblListedesclasses[UNIQUE]),tblListedesclasses[UNIQUE],0),2),0)","v":0},{"$f":"IFERROR(INDEX(tblListedesclasses[],MATCH(SUMPRODUCT((tblListedesclasses[TAG]=tblHoraires[[#Headers],[MITTWOCH]])*($B38>=tblListedesclasses[BEGINNZEIT])*($B38<=tblListedesclasses[ENDZEIT]),tblListedesclasses[UNIQUE]),tblListedesclasses[UNIQUE],0),2),0)","v":0},{"$f":"IFERROR(INDEX(tblListedesclasses[],MATCH(SUMPRODUCT((tblListedesclasses[TAG]=tblHoraires[[#Headers],[DONNERSTAG]])*($B38>=tblListedesclasses[BEGINNZEIT])*($B38<=tblListedesclasses[ENDZEIT]),tblListedesclasses[UNIQUE]),tblListedesclasses[UNIQUE],0),2),0)","v":0},{"$f":"IFERROR(INDEX(tblListedesclasses[],MATCH(SUMPRODUCT((tblListedesclasses[TAG]=tblHoraires[[#Headers],[FREITAG]])*($B38>=tblListedesclasses[BEGINNZEIT])*($B38<=tblListedesclasses[ENDZEIT]),tblListedesclasses[UNIQUE]),tblListedesclasses[UNIQUE],0),2),0)","v":0},{"$f":"IFERROR(INDEX(tblListedesclasses[],MATCH(SUMPRODUCT((tblListedesclasses[TAG]=tblHoraires[[#Headers],[SAMSTAG]])*($B38>=tblListedesclasses[BEGINNZEIT])*($B38<=tblListedesclasses[ENDZEIT]),tblListedesclasses[UNIQUE]),tblListedesclasses[UNIQUE],0),2),0)","v":0}]
[null,"16:30:00",{"$f":"IFERROR(INDEX(tblListedesclasses[],MATCH(SUMPRODUCT((tblListedesclasses[TAG]=tblHoraires[[#Headers],[SONNTAG]])*($B39>=tblListedesclasses[BEGINNZEIT])*($B39<=tblListedesclasses[ENDZEIT]),tblListedesclasses[UNIQUE]),tblListedesclasses[UNIQUE],0),2),0)","v":0},{"$f":"IFERROR(INDEX(tblListedesclasses[],MATCH(SUMPRODUCT((tblListedesclasses[TAG]=tblHoraires[[#Headers],[MONTAG]])*($B39>=tblListedesclasses[BEGINNZEIT])*($B39<=tblListedesclasses[ENDZEIT]),tblListedesclasses[UNIQUE]),tblListedesclasses[UNIQUE],0),2),0)","v":"Maria"},{"$f":"IFERROR(INDEX(tblListedesclasses[],MATCH(SUMPRODUCT((tblListedesclasses[TAG]=tblHoraires[[#Headers],[DIENSTAG]])*($B39>=tblListedesclasses[BEGINNZEIT])*($B39<=tblListedesclasses[ENDZEIT]),tblListedesclasses[UNIQUE]),tblListedesclasses[UNIQUE],0),2),0)","v":0},{"$f":"IFERROR(INDEX(tblListedesclasses[],MATCH(SUMPRODUCT((tblListedesclasses[TAG]=tblHoraires[[#Headers],[MITTWOCH]])*($B39>=tblListedesclasses[BEGINNZEIT])*($B39<=tblListedesclasses[ENDZEIT]),tblListedesclasses[UNIQUE]),tblListedesclasses[UNIQUE],0),2),0)","v":0},{"$f":"IFERROR(INDEX(tblListedesclasses[],MATCH(SUMPRODUCT((tblListedesclasses[TAG]=tblHoraires[[#Headers],[DONNERSTAG]])*($B39>=tblListedesclasses[BEGINNZEIT])*($B39<=tblListedesclasses[ENDZEIT]),tblListedesclasses[UNIQUE]),tblListedesclasses[UNIQUE],0),2),0)","v":0},{"$f":"IFERROR(INDEX(tblListedesclasses[],MATCH(SUMPRODUCT((tblListedesclasses[TAG]=tblHoraires[[#Headers],[FREITAG]])*($B39>=tblListedesclasses[BEGINNZEIT])*($B39<=tblListedesclasses[ENDZEIT]),tblListedesclasses[UNIQUE]),tblListedesclasses[UNIQUE],0),2),0)","v":"Bruno"},{"$f":"IFERROR(INDEX(tblListedesclasses[],MATCH(SUMPRODUCT((tblListedesclasses[TAG]=tblHoraires[[#Headers],[SAMSTAG]])*($B39>=tblListedesclasses[BEGINNZEIT])*($B39<=tblListedesclasses[ENDZEIT]),tblListedesclasses[UNIQUE]),tblListedesclasses[UNIQUE],0),2),0)","v":0}]
[null,"16:45:00",{"$f":"IFERROR(INDEX(tblListedesclasses[],MATCH(SUMPRODUCT((tblListedesclasses[TAG]=tblHoraires[[#Headers],[SONNTAG]])*($B40>=tblListedesclasses[BEGINNZEIT])*($B40<=tblListedesclasses[ENDZEIT]),tblListedesclasses[UNIQUE]),tblListedesclasses[UNIQUE],0),2),0)","v":0},{"$f":"IFERROR(INDEX(tblListedesclasses[],MATCH(SUMPRODUCT((tblListedesclasses[TAG]=tblHoraires[[#Headers],[MONTAG]])*($B40>=tblListedesclasses[BEGINNZEIT])*($B40<=tblListedesclasses[ENDZEIT]),tblListedesclasses[UNIQUE]),tblListedesclasses[UNIQUE],0),2),0)","v":"Maria"},{"$f":"IFERROR(INDEX(tblListedesclasses[],MATCH(SUMPRODUCT((tblListedesclasses[TAG]=tblHoraires[[#Headers],[DIENSTAG]])*($B40>=tblListedesclasses[BEGINNZEIT])*($B40<=tblListedesclasses[ENDZEIT]),tblListedesclasses[UNIQUE]),tblListedesclasses[UNIQUE],0),2),0)","v":0},{"$f":"IFERROR(INDEX(tblListedesclasses[],MATCH(SUMPRODUCT((tblListedesclasses[TAG]=tblHoraires[[#Headers],[MITTWOCH]])*($B40>=tblListedesclasses[BEGINNZEIT])*($B40<=tblListedesclasses[ENDZEIT]),tblListedesclasses[UNIQUE]),tblListedesclasses[UNIQUE],0),2),0)","v":0},{"$f":"IFERROR(INDEX(tblListedesclasses[],MATCH(SUMPRODUCT((tblListedesclasses[TAG]=tblHoraires[[#Headers],[DONNERSTAG]])*($B40>=tblListedesclasses[BEGINNZEIT])*($B40<=tblListedesclasses[ENDZEIT]),tblListedesclasses[UNIQUE]),tblListedesclasses[UNIQUE],0),2),0)","v":0},{"$f":"IFERROR(INDEX(tblListedesclasses[],MATCH(SUMPRODUCT((tblListedesclasses[TAG]=tblHoraires[[#Headers],[FREITAG]])*($B40>=tblListedesclasses[BEGINNZEIT])*($B40<=tblListedesclasses[ENDZEIT]),tblListedesclasses[UNIQUE]),tblListedesclasses[UNIQUE],0),2),0)","v":"Bruno"},{"$f":"IFERROR(INDEX(tblListedesclasses[],MATCH(SUMPRODUCT((tblListedesclasses[TAG]=tblHoraires[[#Headers],[SAMSTAG]])*($B40>=tblListedesclasses[BEGINNZEIT])*($B40<=tblListedesclasses[ENDZEIT]),tblListedesclasses[UNIQUE]),tblListedesclasses[UNIQUE],0),2),0)","v":0}]
[null,"17:00:00",{"$f":"IFERROR(INDEX(tblListedesclasses[],MATCH(SUMPRODUCT((tblListedesclasses[TAG]=tblHoraires[[#Headers],[SONNTAG]])*($B41>=tblListedesclasses[BEGINNZEIT])*($B41<=tblListedesclasses[ENDZEIT]),tblListedesclasses[UNIQUE]),tblListedesclasses[UNIQUE],0),2),0)","v":0},{"$f":"IFERROR(INDEX(tblListedesclasses[],MATCH(SUMPRODUCT((tblListedesclasses[TAG]=tblHoraires[[#Headers],[MONTAG]])*($B41>=tblListedesclasses[BEGINNZEIT])*($B41<=tblListedesclasses[ENDZEIT]),tblListedesclasses[UNIQUE]),tblListedesclasses[UNIQUE],0),2),0)","v":"Maria"},{"$f":"IFERROR(INDEX(tblListedesclasses[],MATCH(SUMPRODUCT((tblListedesclasses[TAG]=tblHoraires[[#Headers],[DIENSTAG]])*($B41>=tblListedesclasses[BEGINNZEIT])*($B41<=tblListedesclasses[ENDZEIT]),tblListedesclasses[UNIQUE]),tblListedesclasses[UNIQUE],0),2),0)","v":0},{"$f":"IFERROR(INDEX(tblListedesclasses[],MATCH(SUMPRODUCT((tblListedesclasses[TAG]=tblHoraires[[#Headers],[MITTWOCH]])*($B41>=tblListedesclasses[BEGINNZEIT])*($B41<=tblListedesclasses[ENDZEIT]),tblListedesclasses[UNIQUE]),tblListedesclasses[UNIQUE],0),2),0)","v":0},{"$f":"IFERROR(INDEX(tblListedesclasses[],MATCH(SUMPRODUCT((tblListedesclasses[TAG]=tblHoraires[[#Headers],[DONNERSTAG]])*($B41>=tblListedesclasses[BEGINNZEIT])*($B41<=tblListedesclasses[ENDZEIT]),tblListedesclasses[UNIQUE]),tblListedesclasses[UNIQUE],0),2),0)","v":0},{"$f":"IFERROR(INDEX(tblListedesclasses[],MATCH(SUMPRODUCT((tblListedesclasses[TAG]=tblHoraires[[#Headers],[FREITAG]])*($B41>=tblListedesclasses[BEGINNZEIT])*($B41<=tblListedesclasses[ENDZEIT]),tblListedesclasses[UNIQUE]),tblListedesclasses[UNIQUE],0),2),0)","v":"Bruno"},{"$f":"IFERROR(INDEX(tblListedesclasses[],MATCH(SUMPRODUCT((tblListedesclasses[TAG]=tblHoraires[[#Headers],[SAMSTAG]])*($B41>=tblListedesclasses[BEGINNZEIT])*($B41<=tblListedesclasses[ENDZEIT]),tblListedesclasses[UNIQUE]),tblListedesclasses[UNIQUE],0),2),0)","v":0}]
[null,"17:15:00",{"$f":"IFERROR(INDEX(tblListedesclasses[],MATCH(SUMPRODUCT((tblListedesclasses[TAG]=tblHoraires[[#Headers],[SONNTAG]])*($B42>=tblListedesclasses[BEGINNZEIT])*($B42<=tblListedesclasses[ENDZEIT]),tblListedesclasses[UNIQUE]),tblListedesclasses[UNIQUE],0),2),0)","v":0},{"$f":"IFERROR(INDEX(tblListedesclasses[],MATCH(SUMPRODUCT((tblListedesclasses[TAG]=tblHoraires[[#Headers],[MONTAG]])*($B42>=tblListedesclasses[BEGINNZEIT])*($B42<=tblListedesclasses[ENDZEIT]),tblListedesclasses[UNIQUE]),tblListedesclasses[UNIQUE],0),2),0)","v":0},{"$f":"IFERROR(INDEX(tblListedesclasses[],MATCH(SUMPRODUCT((tblListedesclasses[TAG]=tblHoraires[[#Headers],[DIENSTAG]])*($B42>=tblListedesclasses[BEGINNZEIT])*($B42<=tblListedesclasses[ENDZEIT]),tblListedesclasses[UNIQUE]),tblListedesclasses[UNIQUE],0),2),0)","v":0},{"$f":"IFERROR(INDEX(tblListedesclasses[],MATCH(SUMPRODUCT((tblListedesclasses[TAG]=tblHoraires[[#Headers],[MITTWOCH]])*($B42>=tblListedesclasses[BEGINNZEIT])*($B42<=tblListedesclasses[ENDZEIT]),tblListedesclasses[UNIQUE]),tblListedesclasses[UNIQUE],0),2),0)","v":0},{"$f":"IFERROR(INDEX(tblListedesclasses[],MATCH(SUMPRODUCT((tblListedesclasses[TAG]=tblHoraires[[#Headers],[DONNERSTAG]])*($B42>=tblListedesclasses[BEGINNZEIT])*($B42<=tblListedesclasses[ENDZEIT]),tblListedesclasses[UNIQUE]),tblListedesclasses[UNIQUE],0),2),0)","v":0},{"$f":"IFERROR(INDEX(tblListedesclasses[],MATCH(SUMPRODUCT((tblListedesclasses[TAG]=tblHoraires[[#Headers],[FREITAG]])*($B42>=tblListedesclasses[BEGINNZEIT])*($B42<=tblListedesclasses[ENDZEIT]),tblListedesclasses[UNIQUE]),tblListedesclasses[UNIQUE],0),2),0)","v":"Bruno"},{"$f":"IFERROR(INDEX(tblListedesclasses[],MATCH(SUMPRODUCT((tblListedesclasses[TAG]=tblHoraires[[#Headers],[SAMSTAG]])*($B42>=tblListedesclasses[BEGINNZEIT])*($B42<=tblListedesclasses[ENDZEIT]),tblListedesclasses[UNIQUE]),tblListedesclasses[UNIQUE],0),2),0)","v":0}]
[null,"17:30:00",{"$f":"IFERROR(INDEX(tblListedesclasses[],MATCH(SUMPRODUCT((tblListedesclasses[TAG]=tblHoraires[[#Headers],[SONNTAG]])*($B43>=tblListedesclasses[BEGINNZEIT])*($B43<=tblListedesclasses[ENDZEIT]),tblListedesclasses[UNIQUE]),tblListedesclasses[UNIQUE],0),2),0)","v":0},{"$f":"IFERROR(INDEX(tblListedesclasses[],MATCH(SUMPRODUCT((tblListedesclasses[TAG]=tblHoraires[[#Headers],[MONTAG]])*($B43>=tblListedesclasses[BEGINNZEIT])*($B43<=tblListedesclasses[ENDZEIT]),tblListedesclasses[UNIQUE]),tblListedesclasses[UNIQUE],0),2),0)","v":0},{"$f":"IFERROR(INDEX(tblListedesclasses[],MATCH(SUMPRODUCT((tblListedesclasses[TAG]=tblHoraires[[#Headers],[DIENSTAG]])*($B43>=tblListedesclasses[BEGINNZEIT])*($B43<=tblListedesclasses[ENDZEIT]),tblListedesclasses[UNIQUE]),tblListedesclasses[UNIQUE],0),2),0)","v":0},{"$f":"IFERROR(INDEX(tblListedesclasses[],MATCH(SUMPRODUCT((tblListedesclasses[TAG]=tblHoraires[[#Headers],[MITTWOCH]])*($B43>=tblListedesclasses[BEGINNZEIT])*($B43<=tblListedesclasses[ENDZEIT]),tblListedesclasses[UNIQUE]),tblListedesclasses[UNIQUE],0),2),0)","v":0},{"$f":"IFERROR(INDEX(tblListedesclasses[],MATCH(SUMPRODUCT((tblListedesclasses[TAG]=tblHoraires[[#Headers],[DONNERSTAG]])*($B43>=tblListedesclasses[BEGINNZEIT])*($B43<=tblListedesclasses[ENDZEIT]),tblListedesclasses[UNIQUE]),tblListedesclasses[UNIQUE],0),2),0)","v":0},{"$f":"IFERROR(INDEX(tblListedesclasses[],MATCH(SUMPRODUCT((tblListedesclasses[TAG]=tblHoraires[[#Headers],[FREITAG]])*($B43>=tblListedesclasses[BEGINNZEIT])*($B43<=tblListedesclasses[ENDZEIT]),tblListedesclasses[UNIQUE]),tblListedesclasses[UNIQUE],0),2),0)","v":"Bruno"},{"$f":"IFERROR(INDEX(tblListedesclasses[],MATCH(SUMPRODUCT((tblListedesclasses[TAG]=tblHoraires[[#Headers],[SAMSTAG]])*($B43>=tblListedesclasses[BEGINNZEIT])*($B43<=tblListedesclasses[ENDZEIT]),tblListedesclasses[UNIQUE]),tblListedesclasses[UNIQUE],0),2),0)","v":0}]
[null,"17:45:00",{"$f":"IFERROR(INDEX(tblListedesclasses[],MATCH(SUMPRODUCT((tblListedesclasses[TAG]=tblHoraires[[#Headers],[SONNTAG]])*($B44>=tblListedesclasses[BEGINNZEIT])*($B44<=tblListedesclasses[ENDZEIT]),tblListedesclasses[UNIQUE]),tblListedesclasses[UNIQUE],0),2),0)","v":0},{"$f":"IFERROR(INDEX(tblListedesclasses[],MATCH(SUMPRODUCT((tblListedesclasses[TAG]=tblHoraires[[#Headers],[MONTAG]])*($B44>=tblListedesclasses[BEGINNZEIT])*($B44<=tblListedesclasses[ENDZEIT]),tblListedesclasses[UNIQUE]),tblListedesclasses[UNIQUE],0),2),0)","v":0},{"$f":"IFERROR(INDEX(tblListedesclasses[],MATCH(SUMPRODUCT((tblListedesclasses[TAG]=tblHoraires[[#Headers],[DIENSTAG]])*($B44>=tblListedesclasses[BEGINNZEIT])*($B44<=tblListedesclasses[ENDZEIT]),tblListedesclasses[UNIQUE]),tblListedesclasses[UNIQUE],0),2),0)","v":0},{"$f":"IFERROR(INDEX(tblListedesclasses[],MATCH(SUMPRODUCT((tblListedesclasses[TAG]=tblHoraires[[#Headers],[MITTWOCH]])*($B44>=tblListedesclasses[BEGINNZEIT])*($B44<=tblListedesclasses[ENDZEIT]),tblListedesclasses[UNIQUE]),tblListedesclasses[UNIQUE],0),2),0)","v":0},{"$f":"IFERROR(INDEX(tblListedesclasses[],MATCH(SUMPRODUCT((tblListedesclasses[TAG]=tblHoraires[[#Headers],[DONNERSTAG]])*($B44>=tblListedesclasses[BEGINNZEIT])*($B44<=tblListedesclasses[ENDZEIT]),tblListedesclasses[UNIQUE]),tblListedesclasses[UNIQUE],0),2),0)","v":0},{"$f":"IFERROR(INDEX(tblListedesclasses[],MATCH(SUMPRODUCT((tblListedesclasses[TAG]=tblHoraires[[#Headers],[FREITAG]])*($B44>=tblListedesclasses[BEGINNZEIT])*($B44<=tblListedesclasses[ENDZEIT]),tblListedesclasses[UNIQUE]),tblListedesclasses[UNIQUE],0),2),0)","v":0},{"$f":"IFERROR(INDEX(tblListedesclasses[],MATCH(SUMPRODUCT((tblListedesclasses[TAG]=tblHoraires[[#Headers],[SAMSTAG]])*($B44>=tblListedesclasses[BEGINNZEIT])*($B44<=tblListedesclasses[ENDZEIT]),tblListedesclasses[UNIQUE]),tblListedesclasses[UNIQUE],0),2),0)","v":0}]
[null,"18:00:00",{"$f":"IFERROR(INDEX(tblListedesclasses[],MATCH(SUMPRODUCT((tblListedesclasses[TAG]=tblHoraires[[#Headers],[SONNTAG]])*($B45>=tblListedesclasses[BEGINNZEIT])*($B45<=tblListedesclasses[ENDZEIT]),tblListedesclasses[UNIQUE]),tblListedesclasses[UNIQUE],0),2),0)","v":0},{"$f":"IFERROR(INDEX(tblListedesclasses[],MATCH(SUMPRODUCT((tblListedesclasses[TAG]=tblHoraires[[#Headers],[MONTAG]])*($B45>=tblListedesclasses[BEGINNZEIT])*($B45<=tblListedesclasses[ENDZEIT]),tblListedesclasses[UNIQUE]),tblListedesclasses[UNIQUE],0),2),0)","v":0},{"$f":"IFERROR(INDEX(tblListedesclasses[],MATCH(SUMPRODUCT((tblListedesclasses[TAG]=tblHoraires[[#Headers],[DIENSTAG]])*($B45>=tblListedesclasses[BEGINNZEIT])*($B45<=tblListedesclasses[ENDZEIT]),tblListedesclasses[UNIQUE]),tblListedesclasses[UNIQUE],0),2),0)","v":0},{"$f":"IFERROR(INDEX(tblListedesclasses[],MATCH(SUMPRODUCT((tblListedesclasses[TAG]=tblHoraires[[#Headers],[MITTWOCH]])*($B45>=tblListedesclasses[BEGINNZEIT])*($B45<=tblListedesclasses[ENDZEIT]),tblListedesclasses[UNIQUE]),tblListedesclasses[UNIQUE],0),2),0)","v":0},{"$f":"IFERROR(INDEX(tblListedesclasses[],MATCH(SUMPRODUCT((tblListedesclasses[TAG]=tblHoraires[[#Headers],[DONNERSTAG]])*($B45>=tblListedesclasses[BEGINNZEIT])*($B45<=tblListedesclasses[ENDZEIT]),tblListedesclasses[UNIQUE]),tblListedesclasses[UNIQUE],0),2),0)","v":0},{"$f":"IFERROR(INDEX(tblListedesclasses[],MATCH(SUMPRODUCT((tblListedesclasses[TAG]=tblHoraires[[#Headers],[FREITAG]])*($B45>=tblListedesclasses[BEGINNZEIT])*($B45<=tblListedesclasses[ENDZEIT]),tblListedesclasses[UNIQUE]),tblListedesclasses[UNIQUE],0),2),0)","v":0},{"$f":"IFERROR(INDEX(tblListedesclasses[],MATCH(SUMPRODUCT((tblListedesclasses[TAG]=tblHoraires[[#Headers],[SAMSTAG]])*($B45>=tblListedesclasses[BEGINNZEIT])*($B45<=tblListedesclasses[ENDZEIT]),tblListedesclasses[UNIQUE]),tblListedesclasses[UNIQUE],0),2),0)","v":0}]
[null,"18:15:00",{"$f":"IFERROR(INDEX(tblListedesclasses[],MATCH(SUMPRODUCT((tblListedesclasses[TAG]=tblHoraires[[#Headers],[SONNTAG]])*($B46>=tblListedesclasses[BEGINNZEIT])*($B46<=tblListedesclasses[ENDZEIT]),tblListedesclasses[UNIQUE]),tblListedesclasses[UNIQUE],0),2),0)","v":0},{"$f":"IFERROR(INDEX(tblListedesclasses[],MATCH(SUMPRODUCT((tblListedesclasses[TAG]=tblHoraires[[#Headers],[MONTAG]])*($B46>=tblListedesclasses[BEGINNZEIT])*($B46<=tblListedesclasses[ENDZEIT]),tblListedesclasses[UNIQUE]),tblListedesclasses[UNIQUE],0),2),0)","v":0},{"$f":"IFERROR(INDEX(tblListedesclasses[],MATCH(SUMPRODUCT((tblListedesclasses[TAG]=tblHoraires[[#Headers],[DIENSTAG]])*($B46>=tblListedesclasses[BEGINNZEIT])*($B46<=tblListedesclasses[ENDZEIT]),tblListedesclasses[UNIQUE]),tblListedesclasses[UNIQUE],0),2),0)","v":0},{"$f":"IFERROR(INDEX(tblListedesclasses[],MATCH(SUMPRODUCT((tblListedesclasses[TAG]=tblHoraires[[#Headers],[MITTWOCH]])*($B46>=tblListedesclasses[BEGINNZEIT])*($B46<=tblListedesclasses[ENDZEIT]),tblListedesclasses[UNIQUE]),tblListedesclasses[UNIQUE],0),2),0)","v":0},{"$f":"IFERROR(INDEX(tblListedesclasses[],MATCH(SUMPRODUCT((tblListedesclasses[TAG]=tblHoraires[[#Headers],[DONNERSTAG]])*($B46>=tblListedesclasses[BEGINNZEIT])*($B46<=tblListedesclasses[ENDZEIT]),tblListedesclasses[UNIQUE]),tblListedesclasses[UNIQUE],0),2),0)","v":0},{"$f":"IFERROR(INDEX(tblListedesclasses[],MATCH(SUMPRODUCT((tblListedesclasses[TAG]=tblHoraires[[#Headers],[FREITAG]])*($B46>=tblListedesclasses[BEGINNZEIT])*($B46<=tblListedesclasses[ENDZEIT]),tblListedesclasses[UNIQUE]),tblListedesclasses[UNIQUE],0),2),0)","v":0},{"$f":"IFERROR(INDEX(tblListedesclasses[],MATCH(SUMPRODUCT((tblListedesclasses[TAG]=tblHoraires[[#Headers],[SAMSTAG]])*($B46>=tblListedesclasses[BEGINNZEIT])*($B46<=tblListedesclasses[ENDZEIT]),tblListedesclasses[UNIQUE]),tblListedesclasses[UNIQUE],0),2),0)","v":0}]
[null,"18:30:00",{"$f":"IFERROR(INDEX(tblListedesclasses[],MATCH(SUMPRODUCT((tblListedesclasses[TAG]=tblHoraires[[#Headers],[SONNTAG]])*($B47>=tblListedesclasses[BEGINNZEIT])*($B47<=tblListedesclasses[ENDZEIT]),tblListedesclasses[UNIQUE]),tblListedesclasses[UNIQUE],0),2),0)","v":0},{"$f":"IFERROR(INDEX(tblListedesclasses[],MATCH(SUMPRODUCT((tblListedesclasses[TAG]=tblHoraires[[#Headers],[MONTAG]])*($B47>=tblListedesclasses[BEGINNZEIT])*($B47<=tblListedesclasses[ENDZEIT]),tblListedesclasses[UNIQUE]),tblListedesclasses[UNIQUE],0),2),0)","v":0},{"$f":"IFERROR(INDEX(tblListedesclasses[],MATCH(SUMPRODUCT((tblListedesclasses[TAG]=tblHoraires[[#Headers],[DIENSTAG]])*($B47>=tblListedesclasses[BEGINNZEIT])*($B47<=tblListedesclasses[ENDZEIT]),tblListedesclasses[UNIQUE]),tblListedesclasses[UNIQUE],0),2),0)","v":0},{"$f":"IFERROR(INDEX(tblListedesclasses[],MATCH(SUMPRODUCT((tblListedesclasses[TAG]=tblHoraires[[#Headers],[MITTWOCH]])*($B47>=tblListedesclasses[BEGINNZEIT])*($B47<=tblListedesclasses[ENDZEIT]),tblListedesclasses[UNIQUE]),tblListedesclasses[UNIQUE],0),2),0)","v":0},{"$f":"IFERROR(INDEX(tblListedesclasses[],MATCH(SUMPRODUCT((tblListedesclasses[TAG]=tblHoraires[[#Headers],[DONNERSTAG]])*($B47>=tblListedesclasses[BEGINNZEIT])*($B47<=tblListedesclasses[ENDZEIT]),tblListedesclasses[UNIQUE]),tblListedesclasses[UNIQUE],0),2),0)","v":0},{"$f":"IFERROR(INDEX(tblListedesclasses[],MATCH(SUMPRODUCT((tblListedesclasses[TAG]=tblHoraires[[#Headers],[FREITAG]])*($B47>=tblListedesclasses[BEGINNZEIT])*($B47<=tblListedesclasses[ENDZEIT]),tblListedesclasses[UNIQUE]),tblListedesclasses[UNIQUE],0),2),0)","v":0},{"$f":"IFERROR(INDEX(tblListedesclasses[],MATCH(SUMPRODUCT((tblListedesclasses[TAG]=tblHoraires[[#Headers],[SAMSTAG]])*($B47>=tblListedesclasses[BEGINNZEIT])*($B47<=tblListedesclasses[ENDZEIT]),tblListedesclasses[UNIQUE]),tblListedesclasses[UNIQUE],0),2),0)","v":0}]
[null,"18:45:00",{"$f":"IFERROR(INDEX(tblListedesclasses[],MATCH(SUMPRODUCT((tblListedesclasses[TAG]=tblHoraires[[#Headers],[SONNTAG]])*($B48>=tblListedesclasses[BEGINNZEIT])*($B48<=tblListedesclasses[ENDZEIT]),tblListedesclasses[UNIQUE]),tblListedesclasses[UNIQUE],0),2),0)","v":0},{"$f":"IFERROR(INDEX(tblListedesclasses[],MATCH(SUMPRODUCT((tblListedesclasses[TAG]=tblHoraires[[#Headers],[MONTAG]])*($B48>=tblListedesclasses[BEGINNZEIT])*($B48<=tblListedesclasses[ENDZEIT]),tblListedesclasses[UNIQUE]),tblListedesclasses[UNIQUE],0),2),0)","v":0},{"$f":"IFERROR(INDEX(tblListedesclasses[],MATCH(SUMPRODUCT((tblListedesclasses[TAG]=tblHoraires[[#Headers],[DIENSTAG]])*($B48>=tblListedesclasses[BEGINNZEIT])*($B48<=tblListedesclasses[ENDZEIT]),tblListedesclasses[UNIQUE]),tblListedesclasses[UNIQUE],0),2),0)","v":0},{"$f":"IFERROR(INDEX(tblListedesclasses[],MATCH(SUMPRODUCT((tblListedesclasses[TAG]=tblHoraires[[#Headers],[MITTWOCH]])*($B48>=tblListedesclasses[BEGINNZEIT])*($B48<=tblListedesclasses[ENDZEIT]),tblListedesclasses[UNIQUE]),tblListedesclasses[UNIQUE],0),2),0)","v":0},{"$f":"IFERROR(INDEX(tblListedesclasses[],MATCH(SUMPRODUCT((tblListedesclasses[TAG]=tblHoraires[[#Headers],[DONNERSTAG]])*($B48>=tblListedesclasses[BEGINNZEIT])*($B48<=tblListedesclasses[ENDZEIT]),tblListedesclasses[UNIQUE]),tblListedesclasses[UNIQUE],0),2),0)","v":0},{"$f":"IFERROR(INDEX(tblListedesclasses[],MATCH(SUMPRODUCT((tblListedesclasses[TAG]=tblHoraires[[#Headers],[FREITAG]])*($B48>=tblListedesclasses[BEGINNZEIT])*($B48<=tblListedesclasses[ENDZEIT]),tblListedesclasses[UNIQUE]),tblListedesclasses[UNIQUE],0),2),0)","v":0},{"$f":"IFERROR(INDEX(tblListedesclasses[],MATCH(SUMPRODUCT((tblListedesclasses[TAG]=tblHoraires[[#Headers],[SAMSTAG]])*($B48>=tblListedesclasses[BEGINNZEIT])*($B48<=tblListedesclasses[ENDZEIT]),tblListedesclasses[UNIQUE]),tblListedesclasses[UNIQUE],0),2),0)","v":0}]
[null,"19:00:00",{"$f":"IFERROR(INDEX(tblListedesclasses[],MATCH(SUMPRODUCT((tblListedesclasses[TAG]=tblHoraires[[#Headers],[SONNTAG]])*($B49>=tblListedesclasses[BEGINNZEIT])*($B49<=tblListedesclasses[ENDZEIT]),tblListedesclasses[UNIQUE]),tblListedesclasses[UNIQUE],0),2),0)","v":0},{"$f":"IFERROR(INDEX(tblListedesclasses[],MATCH(SUMPRODUCT((tblListedesclasses[TAG]=tblHoraires[[#Headers],[MONTAG]])*($B49>=tblListedesclasses[BEGINNZEIT])*($B49<=tblListedesclasses[ENDZEIT]),tblListedesclasses[UNIQUE]),tblListedesclasses[UNIQUE],0),2),0)","v":0},{"$f":"IFERROR(INDEX(tblListedesclasses[],MATCH(SUMPRODUCT((tblListedesclasses[TAG]=tblHoraires[[#Headers],[DIENSTAG]])*($B49>=tblListedesclasses[BEGINNZEIT])*($B49<=tblListedesclasses[ENDZEIT]),tblListedesclasses[UNIQUE]),tblListedesclasses[UNIQUE],0),2),0)","v":0},{"$f":"IFERROR(INDEX(tblListedesclasses[],MATCH(SUMPRODUCT((tblListedesclasses[TAG]=tblHoraires[[#Headers],[MITTWOCH]])*($B49>=tblListedesclasses[BEGINNZEIT])*($B49<=tblListedesclasses[ENDZEIT]),tblListedesclasses[UNIQUE]),tblListedesclasses[UNIQUE],0),2),0)","v":0},{"$f":"IFERROR(INDEX(tblListedesclasses[],MATCH(SUMPRODUCT((tblListedesclasses[TAG]=tblHoraires[[#Headers],[DONNERSTAG]])*($B49>=tblListedesclasses[BEGINNZEIT])*($B49<=tblListedesclasses[ENDZEIT]),tblListedesclasses[UNIQUE]),tblListedesclasses[UNIQUE],0),2),0)","v":0},{"$f":"IFERROR(INDEX(tblListedesclasses[],MATCH(SUMPRODUCT((tblListedesclasses[TAG]=tblHoraires[[#Headers],[FREITAG]])*($B49>=tblListedesclasses[BEGINNZEIT])*($B49<=tblListedesclasses[ENDZEIT]),tblListedesclasses[UNIQUE]),tblListedesclasses[UNIQUE],0),2),0)","v":0},{"$f":"IFERROR(INDEX(tblListedesclasses[],MATCH(SUMPRODUCT((tblListedesclasses[TAG]=tblHoraires[[#Headers],[SAMSTAG]])*($B49>=tblListedesclasses[BEGINNZEIT])*($B49<=tblListedesclasses[ENDZEIT]),tblListedesclasses[UNIQUE]),tblListedesclasses[UNIQUE],0),2),0)","v":0}]
[null,"19:15:00",{"$f":"IFERROR(INDEX(tblListedesclasses[],MATCH(SUMPRODUCT((tblListedesclasses[TAG]=tblHoraires[[#Headers],[SONNTAG]])*($B50>=tblListedesclasses[BEGINNZEIT])*($B50<=tblListedesclasses[ENDZEIT]),tblListedesclasses[UNIQUE]),tblListedesclasses[UNIQUE],0),2),0)","v":"Ich"},{"$f":"IFERROR(INDEX(tblListedesclasses[],MATCH(SUMPRODUCT((tblListedesclasses[TAG]=tblHoraires[[#Headers],[MONTAG]])*($B50>=tblListedesclasses[BEGINNZEIT])*($B50<=tblListedesclasses[ENDZEIT]),tblListedesclasses[UNIQUE]),tblListedesclasses[UNIQUE],0),2),0)","v":0},{"$f":"IFERROR(INDEX(tblListedesclasses[],MATCH(SUMPRODUCT((tblListedesclasses[TAG]=tblHoraires[[#Headers],[DIENSTAG]])*($B50>=tblListedesclasses[BEGINNZEIT])*($B50<=tblListedesclasses[ENDZEIT]),tblListedesclasses[UNIQUE]),tblListedesclasses[UNIQUE],0),2),0)","v":0},{"$f":"IFERROR(INDEX(tblListedesclasses[],MATCH(SUMPRODUCT((tblListedesclasses[TAG]=tblHoraires[[#Headers],[MITTWOCH]])*($B50>=tblListedesclasses[BEGINNZEIT])*($B50<=tblListedesclasses[ENDZEIT]),tblListedesclasses[UNIQUE]),tblListedesclasses[UNIQUE],0),2),0)","v":0},{"$f":"IFERROR(INDEX(tblListedesclasses[],MATCH(SUMPRODUCT((tblListedesclasses[TAG]=tblHoraires[[#Headers],[DONNERSTAG]])*($B50>=tblListedesclasses[BEGINNZEIT])*($B50<=tblListedesclasses[ENDZEIT]),tblListedesclasses[UNIQUE]),tblListedesclasses[UNIQUE],0),2),0)","v":0},{"$f":"IFERROR(INDEX(tblListedesclasses[],MATCH(SUMPRODUCT((tblListedesclasses[TAG]=tblHoraires[[#Headers],[FREITAG]])*($B50>=tblListedesclasses[BEGINNZEIT])*($B50<=tblListedesclasses[ENDZEIT]),tblListedesclasses[UNIQUE]),tblListedesclasses[UNIQUE],0),2),0)","v":0},{"$f":"IFERROR(INDEX(tblListedesclasses[],MATCH(SUMPRODUCT((tblListedesclasses[TAG]=tblHoraires[[#Headers],[SAMSTAG]])*($B50>=tblListedesclasses[BEGINNZEIT])*($B50<=tblListedesclasses[ENDZEIT]),tblListedesclasses[UNIQUE]),tblListedesclasses[UNIQUE],0),2),0)","v":0}]
[null,"19:30:00",{"$f":"IFERROR(INDEX(tblListedesclasses[],MATCH(SUMPRODUCT((tblListedesclasses[TAG]=tblHoraires[[#Headers],[SONNTAG]])*($B51>=tblListedesclasses[BEGINNZEIT])*($B51<=tblListedesclasses[ENDZEIT]),tblListedesclasses[UNIQUE]),tblListedesclasses[UNIQUE],0),2),0)","v":"Ich"},{"$f":"IFERROR(INDEX(tblListedesclasses[],MATCH(SUMPRODUCT((tblListedesclasses[TAG]=tblHoraires[[#Headers],[MONTAG]])*($B51>=tblListedesclasses[BEGINNZEIT])*($B51<=tblListedesclasses[ENDZEIT]),tblListedesclasses[UNIQUE]),tblListedesclasses[UNIQUE],0),2),0)","v":0},{"$f":"IFERROR(INDEX(tblListedesclasses[],MATCH(SUMPRODUCT((tblListedesclasses[TAG]=tblHoraires[[#Headers],[DIENSTAG]])*($B51>=tblListedesclasses[BEGINNZEIT])*($B51<=tblListedesclasses[ENDZEIT]),tblListedesclasses[UNIQUE]),tblListedesclasses[UNIQUE],0),2),0)","v":0},{"$f":"IFERROR(INDEX(tblListedesclasses[],MATCH(SUMPRODUCT((tblListedesclasses[TAG]=tblHoraires[[#Headers],[MITTWOCH]])*($B51>=tblListedesclasses[BEGINNZEIT])*($B51<=tblListedesclasses[ENDZEIT]),tblListedesclasses[UNIQUE]),tblListedesclasses[UNIQUE],0),2),0)","v":0},{"$f":"IFERROR(INDEX(tblListedesclasses[],MATCH(SUMPRODUCT((tblListedesclasses[TAG]=tblHoraires[[#Headers],[DONNERSTAG]])*($B51>=tblListedesclasses[BEGINNZEIT])*($B51<=tblListedesclasses[ENDZEIT]),tblListedesclasses[UNIQUE]),tblListedesclasses[UNIQUE],0),2),0)","v":0},{"$f":"IFERROR(INDEX(tblListedesclasses[],MATCH(SUMPRODUCT((tblListedesclasses[TAG]=tblHoraires[[#Headers],[FREITAG]])*($B51>=tblListedesclasses[BEGINNZEIT])*($B51<=tblListedesclasses[ENDZEIT]),tblListedesclasses[UNIQUE]),tblListedesclasses[UNIQUE],0),2),0)","v":0},{"$f":"IFERROR(INDEX(tblListedesclasses[],MATCH(SUMPRODUCT((tblListedesclasses[TAG]=tblHoraires[[#Headers],[SAMSTAG]])*($B51>=tblListedesclasses[BEGINNZEIT])*($B51<=tblListedesclasses[ENDZEIT]),tblListedesclasses[UNIQUE]),tblListedesclasses[UNIQUE],0),2),0)","v":0}]
[null,"19:45:00",{"$f":"IFERROR(INDEX(tblListedesclasses[],MATCH(SUMPRODUCT((tblListedesclasses[TAG]=tblHoraires[[#Headers],[SONNTAG]])*($B52>=tblListedesclasses[BEGINNZEIT])*($B52<=tblListedesclasses[ENDZEIT]),tblListedesclasses[UNIQUE]),tblListedesclasses[UNIQUE],0),2),0)","v":"Ich"},{"$f":"IFERROR(INDEX(tblListedesclasses[],MATCH(SUMPRODUCT((tblListedesclasses[TAG]=tblHoraires[[#Headers],[MONTAG]])*($B52>=tblListedesclasses[BEGINNZEIT])*($B52<=tblListedesclasses[ENDZEIT]),tblListedesclasses[UNIQUE]),tblListedesclasses[UNIQUE],0),2),0)","v":0},{"$f":"IFERROR(INDEX(tblListedesclasses[],MATCH(SUMPRODUCT((tblListedesclasses[TAG]=tblHoraires[[#Headers],[DIENSTAG]])*($B52>=tblListedesclasses[BEGINNZEIT])*($B52<=tblListedesclasses[ENDZEIT]),tblListedesclasses[UNIQUE]),tblListedesclasses[UNIQUE],0),2),0)","v":0},{"$f":"IFERROR(INDEX(tblListedesclasses[],MATCH(SUMPRODUCT((tblListedesclasses[TAG]=tblHoraires[[#Headers],[MITTWOCH]])*($B52>=tblListedesclasses[BEGINNZEIT])*($B52<=tblListedesclasses[ENDZEIT]),tblListedesclasses[UNIQUE]),tblListedesclasses[UNIQUE],0),2),0)","v":0},{"$f":"IFERROR(INDEX(tblListedesclasses[],MATCH(SUMPRODUCT((tblListedesclasses[TAG]=tblHoraires[[#Headers],[DONNERSTAG]])*($B52>=tblListedesclasses[BEGINNZEIT])*($B52<=tblListedesclasses[ENDZEIT]),tblListedesclasses[UNIQUE]),tblListedesclasses[UNIQUE],0),2),0)","v":0},{"$f":"IFERROR(INDEX(tblListedesclasses[],MATCH(SUMPRODUCT((tblListedesclasses[TAG]=tblHoraires[[#Headers],[FREITAG]])*($B52>=tblListedesclasses[BEGINNZEIT])*($B52<=tblListedesclasses[ENDZEIT]),tblListedesclasses[UNIQUE]),tblListedesclasses[UNIQUE],0),2),0)","v":0},{"$f":"IFERROR(INDEX(tblListedesclasses[],MATCH(SUMPRODUCT((tblListedesclasses[TAG]=tblHoraires[[#Headers],[SAMSTAG]])*($B52>=tblListedesclasses[BEGINNZEIT])*($B52<=tblListedesclasses[ENDZEIT]),tblListedesclasses[UNIQUE]),tblListedesclasses[UNIQUE],0),2),0)","v":0}]
[null,"20:00:00",{"$f":"IFERROR(INDEX(tblListedesclasses[],MATCH(SUMPRODUCT((tblListedesclasses[TAG]=tblHoraires[[#Headers],[SONNTAG]])*($B53>=tblListedesclasses[BEGINNZEIT])*($B53<=tblListedesclasses[ENDZEIT]),tblListedesclasses[UNIQUE]),tblListedesclasses[UNIQUE],0),2),0)","v":"Ich"},{"$f":"IFERROR(INDEX(tblListedesclasses[],MATCH(SUMPRODUCT((tblListedesclasses[TAG]=tblHoraires[[#Headers],[MONTAG]])*($B53>=tblListedesclasses[BEGINNZEIT])*($B53<=tblListedesclasses[ENDZEIT]),tblListedesclasses[UNIQUE]),tblListedesclasses[UNIQUE],0),2),0)","v":0},{"$f":"IFERROR(INDEX(tblListedesclasses[],MATCH(SUMPRODUCT((tblListedesclasses[TAG]=tblHoraires[[#Headers],[DIENSTAG]])*($B53>=tblListedesclasses[BEGINNZEIT])*($B53<=tblListedesclasses[ENDZEIT]),tblListedesclasses[UNIQUE]),tblListedesclasses[UNIQUE],0),2),0)","v":0},{"$f":"IFERROR(INDEX(tblListedesclasses[],MATCH(SUMPRODUCT((tblListedesclasses[TAG]=tblHoraires[[#Headers],[MITTWOCH]])*($B53>=tblListedesclasses[BEGINNZEIT])*($B53<=tblListedesclasses[ENDZEIT]),tblListedesclasses[UNIQUE]),tblListedesclasses[UNIQUE],0),2),0)","v":0},{"$f":"IFERROR(INDEX(tblListedesclasses[],MATCH(SUMPRODUCT((tblListedesclasses[TAG]=tblHoraires[[#Headers],[DONNERSTAG]])*($B53>=tblListedesclasses[BEGINNZEIT])*($B53<=tblListedesclasses[ENDZEIT]),tblListedesclasses[UNIQUE]),tblListedesclasses[UNIQUE],0),2),0)","v":0},{"$f":"IFERROR(INDEX(tblListedesclasses[],MATCH(SUMPRODUCT((tblListedesclasses[TAG]=tblHoraires[[#Headers],[FREITAG]])*($B53>=tblListedesclasses[BEGINNZEIT])*($B53<=tblListedesclasses[ENDZEIT]),tblListedesclasses[UNIQUE]),tblListedesclasses[UNIQUE],0),2),0)","v":0},{"$f":"IFERROR(INDEX(tblListedesclasses[],MATCH(SUMPRODUCT((tblListedesclasses[TAG]=tblHoraires[[#Headers],[SAMSTAG]])*($B53>=tblListedesclasses[BEGINNZEIT])*($B53<=tblListedesclasses[ENDZEIT]),tblListedesclasses[UNIQUE]),tblListedesclasses[UNIQUE],0),2),0)","v":0}]
[null,"20:15:00",{"$f":"IFERROR(INDEX(tblListedesclasses[],MATCH(SUMPRODUCT((tblListedesclasses[TAG]=tblHoraires[[#Headers],[SONNTAG]])*($B54>=tblListedesclasses[BEGINNZEIT])*($B54<=tblListedesclasses[ENDZEIT]),tblListedesclasses[UNIQUE]),tblListedesclasses[UNIQUE],0),2),0)","v":0},{"$f":"IFERROR(INDEX(tblListedesclasses[],MATCH(SUMPRODUCT((tblListedesclasses[TAG]=tblHoraires[[#Headers],[MONTAG]])*($B54>=tblListedesclasses[BEGINNZEIT])*($B54<=tblListedesclasses[ENDZEIT]),tblListedesclasses[UNIQUE]),tblListedesclasses[UNIQUE],0),2),0)","v":0},{"$f":"IFERROR(INDEX(tblListedesclasses[],MATCH(SUMPRODUCT((tblListedesclasses[TAG]=tblHoraires[[#Headers],[DIENSTAG]])*($B54>=tblListedesclasses[BEGINNZEIT])*($B54<=tblListedesclasses[ENDZEIT]),tblListedesclasses[UNIQUE]),tblListedesclasses[UNIQUE],0),2),0)","v":0},{"$f":"IFERROR(INDEX(tblListedesclasses[],MATCH(SUMPRODUCT((tblListedesclasses[TAG]=tblHoraires[[#Headers],[MITTWOCH]])*($B54>=tblListedesclasses[BEGINNZEIT])*($B54<=tblListedesclasses[ENDZEIT]),tblListedesclasses[UNIQUE]),tblListedesclasses[UNIQUE],0),2),0)","v":0},{"$f":"IFERROR(INDEX(tblListedesclasses[],MATCH(SUMPRODUCT((tblListedesclasses[TAG]=tblHoraires[[#Headers],[DONNERSTAG]])*($B54>=tblListedesclasses[BEGINNZEIT])*($B54<=tblListedesclasses[ENDZEIT]),tblListedesclasses[UNIQUE]),tblListedesclasses[UNIQUE],0),2),0)","v":0},{"$f":"IFERROR(INDEX(tblListedesclasses[],MATCH(SUMPRODUCT((tblListedesclasses[TAG]=tblHoraires[[#Headers],[FREITAG]])*($B54>=tblListedesclasses[BEGINNZEIT])*($B54<=tblListedesclasses[ENDZEIT]),tblListedesclasses[UNIQUE]),tblListedesclasses[UNIQUE],0),2),0)","v":0},{"$f":"IFERROR(INDEX(tblListedesclasses[],MATCH(SUMPRODUCT((tblListedesclasses[TAG]=tblHoraires[[#Headers],[SAMSTAG]])*($B54>=tblListedesclasses[BEGINNZEIT])*($B54<=tblListedesclasses[ENDZEIT]),tblListedesclasses[UNIQUE]),tblListedesclasses[UNIQUE],0),2),0)","v":0}]
[null,"20:30:00",{"$f":"IFERROR(INDEX(tblListedesclasses[],MATCH(SUMPRODUCT((tblListedesclasses[TAG]=tblHoraires[[#Headers],[SONNTAG]])*($B55>=tblListedesclasses[BEGINNZEIT])*($B55<=tblListedesclasses[ENDZEIT]),tblListedesclasses[UNIQUE]),tblListedesclasses[UNIQUE],0),2),0)","v":0},{"$f":"IFERROR(INDEX(tblListedesclasses[],MATCH(SUMPRODUCT((tblListedesclasses[TAG]=tblHoraires[[#Headers],[MONTAG]])*($B55>=tblListedesclasses[BEGINNZEIT])*($B55<=tblListedesclasses[ENDZEIT]),tblListedesclasses[UNIQUE]),tblListedesclasses[UNIQUE],0),2),0)","v":0},{"$f":"IFERROR(INDEX(tblListedesclasses[],MATCH(SUMPRODUCT((tblListedesclasses[TAG]=tblHoraires[[#Headers],[DIENSTAG]])*($B55>=tblListedesclasses[BEGINNZEIT])*($B55<=tblListedesclasses[ENDZEIT]),tblListedesclasses[UNIQUE]),tblListedesclasses[UNIQUE],0),2),0)","v":0},{"$f":"IFERROR(INDEX(tblListedesclasses[],MATCH(SUMPRODUCT((tblListedesclasses[TAG]=tblHoraires[[#Headers],[MITTWOCH]])*($B55>=tblListedesclasses[BEGINNZEIT])*($B55<=tblListedesclasses[ENDZEIT]),tblListedesclasses[UNIQUE]),tblListedesclasses[UNIQUE],0),2),0)","v":0},{"$f":"IFERROR(INDEX(tblListedesclasses[],MATCH(SUMPRODUCT((tblListedesclasses[TAG]=tblHoraires[[#Headers],[DONNERSTAG]])*($B55>=tblListedesclasses[BEGINNZEIT])*($B55<=tblListedesclasses[ENDZEIT]),tblListedesclasses[UNIQUE]),tblListedesclasses[UNIQUE],0),2),0)","v":0},{"$f":"IFERROR(INDEX(tblListedesclasses[],MATCH(SUMPRODUCT((tblListedesclasses[TAG]=tblHoraires[[#Headers],[FREITAG]])*($B55>=tblListedesclasses[BEGINNZEIT])*($B55<=tblListedesclasses[ENDZEIT]),tblListedesclasses[UNIQUE]),tblListedesclasses[UNIQUE],0),2),0)","v":0},{"$f":"IFERROR(INDEX(tblListedesclasses[],MATCH(SUMPRODUCT((tblListedesclasses[TAG]=tblHoraires[[#Headers],[SAMSTAG]])*($B55>=tblListedesclasses[BEGINNZEIT])*($B55<=tblListedesclasses[ENDZEIT]),tblListedesclasses[UNIQUE]),tblListedesclasses[UNIQUE],0),2),0)","v":0}]
[null,"20:45:00",{"$f":"IFERROR(INDEX(tblListedesclasses[],MATCH(SUMPRODUCT((tblListedesclasses[TAG]=tblHoraires[[#Headers],[SONNTAG]])*($B56>=tblListedesclasses[BEGINNZEIT])*($B56<=tblListedesclasses[ENDZEIT]),tblListedesclasses[UNIQUE]),tblListedesclasses[UNIQUE],0),2),0)","v":0},{"$f":"IFERROR(INDEX(tblListedesclasses[],MATCH(SUMPRODUCT((tblListedesclasses[TAG]=tblHoraires[[#Headers],[MONTAG]])*($B56>=tblListedesclasses[BEGINNZEIT])*($B56<=tblListedesclasses[ENDZEIT]),tblListedesclasses[UNIQUE]),tblListedesclasses[UNIQUE],0),2),0)","v":0},{"$f":"IFERROR(INDEX(tblListedesclasses[],MATCH(SUMPRODUCT((tblListedesclasses[TAG]=tblHoraires[[#Headers],[DIENSTAG]])*($B56>=tblListedesclasses[BEGINNZEIT])*($B56<=tblListedesclasses[ENDZEIT]),tblListedesclasses[UNIQUE]),tblListedesclasses[UNIQUE],0),2),0)","v":0},{"$f":"IFERROR(INDEX(tblListedesclasses[],MATCH(SUMPRODUCT((tblListedesclasses[TAG]=tblHoraires[[#Headers],[MITTWOCH]])*($B56>=tblListedesclasses[BEGINNZEIT])*($B56<=tblListedesclasses[ENDZEIT]),tblListedesclasses[UNIQUE]),tblListedesclasses[UNIQUE],0),2),0)","v":0},{"$f":"IFERROR(INDEX(tblListedesclasses[],MATCH(SUMPRODUCT((tblListedesclasses[TAG]=tblHoraires[[#Headers],[DONNERSTAG]])*($B56>=tblListedesclasses[BEGINNZEIT])*($B56<=tblListedesclasses[ENDZEIT]),tblListedesclasses[UNIQUE]),tblListedesclasses[UNIQUE],0),2),0)","v":0},{"$f":"IFERROR(INDEX(tblListedesclasses[],MATCH(SUMPRODUCT((tblListedesclasses[TAG]=tblHoraires[[#Headers],[FREITAG]])*($B56>=tblListedesclasses[BEGINNZEIT])*($B56<=tblListedesclasses[ENDZEIT]),tblListedesclasses[UNIQUE]),tblListedesclasses[UNIQUE],0),2),0)","v":0},{"$f":"IFERROR(INDEX(tblListedesclasses[],MATCH(SUMPRODUCT((tblListedesclasses[TAG]=tblHoraires[[#Headers],[SAMSTAG]])*($B56>=tblListedesclasses[BEGINNZEIT])*($B56<=tblListedesclasses[ENDZEIT]),tblListedesclasses[UNIQUE]),tblListedesclasses[UNIQUE],0),2),0)","v":0}]
[null,"21:00:00",{"$f":"IFERROR(INDEX(tblListedesclasses[],MATCH(SUMPRODUCT((tblListedesclasses[TAG]=tblHoraires[[#Headers],[SONNTAG]])*($B57>=tblListedesclasses[BEGINNZEIT])*($B57<=tblListedesclasses[ENDZEIT]),tblListedesclasses[UNIQUE]),tblListedesclasses[UNIQUE],0),2),0)","v":0},{"$f":"IFERROR(INDEX(tblListedesclasses[],MATCH(SUMPRODUCT((tblListedesclasses[TAG]=tblHoraires[[#Headers],[MONTAG]])*($B57>=tblListedesclasses[BEGINNZEIT])*($B57<=tblListedesclasses[ENDZEIT]),tblListedesclasses[UNIQUE]),tblListedesclasses[UNIQUE],0),2),0)","v":0},{"$f":"IFERROR(INDEX(tblListedesclasses[],MATCH(SUMPRODUCT((tblListedesclasses[TAG]=tblHoraires[[#Headers],[DIENSTAG]])*($B57>=tblListedesclasses[BEGINNZEIT])*($B57<=tblListedesclasses[ENDZEIT]),tblListedesclasses[UNIQUE]),tblListedesclasses[UNIQUE],0),2),0)","v":0},{"$f":"IFERROR(INDEX(tblListedesclasses[],MATCH(SUMPRODUCT((tblListedesclasses[TAG]=tblHoraires[[#Headers],[MITTWOCH]])*($B57>=tblListedesclasses[BEGINNZEIT])*($B57<=tblListedesclasses[ENDZEIT]),tblListedesclasses[UNIQUE]),tblListedesclasses[UNIQUE],0),2),0)","v":0},{"$f":"IFERROR(INDEX(tblListedesclasses[],MATCH(SUMPRODUCT((tblListedesclasses[TAG]=tblHoraires[[#Headers],[DONNERSTAG]])*($B57>=tblListedesclasses[BEGINNZEIT])*($B57<=tblListedesclasses[ENDZEIT]),tblListedesclasses[UNIQUE]),tblListedesclasses[UNIQUE],0),2),0)","v":0},{"$f":"IFERROR(INDEX(tblListedesclasses[],MATCH(SUMPRODUCT((tblListedesclasses[TAG]=tblHoraires[[#Headers],[FREITAG]])*($B57>=tblListedesclasses[BEGINNZEIT])*($B57<=tblListedesclasses[ENDZEIT]),tblListedesclasses[UNIQUE]),tblListedesclasses[UNIQUE],0),2),0)","v":0},{"$f":"IFERROR(INDEX(tblListedesclasses[],MATCH(SUMPRODUCT((tblListedesclasses[TAG]=tblHoraires[[#Headers],[SAMSTAG]])*($B57>=tblListedesclasses[BEGINNZEIT])*($B57<=tblListedesclasses[ENDZEIT]),tblListedesclasses[UNIQUE]),tblListedesclasses[UNIQUE],0),2),0)","v":0}]
[null,"21:15:00",{"$f":"IFERROR(INDEX(tblListedesclasses[],MATCH(SUMPRODUCT((tblListedesclasses[TAG]=tblHoraires[[#Headers],[SONNTAG]])*($B58>=tblListedesclasses[BEGINNZEIT])*($B58<=tblListedesclasses[ENDZEIT]),tblListedesclasses[UNIQUE]),tblListedesclasses[UNIQUE],0),2),0)","v":0},{"$f":"IFERROR(INDEX(tblListedesclasses[],MATCH(SUMPRODUCT((tblListedesclasses[TAG]=tblHoraires[[#Headers],[MONTAG]])*($B58>=tblListedesclasses[BEGINNZEIT])*($B58<=tblListedesclasses[ENDZEIT]),tblListedesclasses[UNIQUE]),tblListedesclasses[UNIQUE],0),2),0)","v":0},{"$f":"IFERROR(INDEX(tblListedesclasses[],MATCH(SUMPRODUCT((tblListedesclasses[TAG]=tblHoraires[[#Headers],[DIENSTAG]])*($B58>=tblListedesclasses[BEGINNZEIT])*($B58<=tblListedesclasses[ENDZEIT]),tblListedesclasses[UNIQUE]),tblListedesclasses[UNIQUE],0),2),0)","v":0},{"$f":"IFERROR(INDEX(tblListedesclasses[],MATCH(SUMPRODUCT((tblListedesclasses[TAG]=tblHoraires[[#Headers],[MITTWOCH]])*($B58>=tblListedesclasses[BEGINNZEIT])*($B58<=tblListedesclasses[ENDZEIT]),tblListedesclasses[UNIQUE]),tblListedesclasses[UNIQUE],0),2),0)","v":0},{"$f":"IFERROR(INDEX(tblListedesclasses[],MATCH(SUMPRODUCT((tblListedesclasses[TAG]=tblHoraires[[#Headers],[DONNERSTAG]])*($B58>=tblListedesclasses[BEGINNZEIT])*($B58<=tblListedesclasses[ENDZEIT]),tblListedesclasses[UNIQUE]),tblListedesclasses[UNIQUE],0),2),0)","v":0},{"$f":"IFERROR(INDEX(tblListedesclasses[],MATCH(SUMPRODUCT((tblListedesclasses[TAG]=tblHoraires[[#Headers],[FREITAG]])*($B58>=tblListedesclasses[BEGINNZEIT])*($B58<=tblListedesclasses[ENDZEIT]),tblListedesclasses[UNIQUE]),tblListedesclasses[UNIQUE],0),2),0)","v":0},{"$f":"IFERROR(INDEX(tblListedesclasses[],MATCH(SUMPRODUCT((tblListedesclasses[TAG]=tblHoraires[[#Headers],[SAMSTAG]])*($B58>=tblListedesclasses[BEGINNZEIT])*($B58<=tblListedesclasses[ENDZEIT]),tblListedesclasses[UNIQUE]),tblListedesclasses[UNIQUE],0),2),0)","v":0}]
[null,"21:30:00",{"$f":"IFERROR(INDEX(tblListedesclasses[],MATCH(SUMPRODUCT((tblListedesclasses[TAG]=tblHoraires[[#Headers],[SONNTAG]])*($B59>=tblListedesclasses[BEGINNZEIT])*($B59<=tblListedesclasses[ENDZEIT]),tblListedesclasses[UNIQUE]),tblListedesclasses[UNIQUE],0),2),0)","v":0},{"$f":"IFERROR(INDEX(tblListedesclasses[],MATCH(SUMPRODUCT((tblListedesclasses[TAG]=tblHoraires[[#Headers],[MONTAG]])*($B59>=tblListedesclasses[BEGINNZEIT])*($B59<=tblListedesclasses[ENDZEIT]),tblListedesclasses[UNIQUE]),tblListedesclasses[UNIQUE],0),2),0)","v":0},{"$f":"IFERROR(INDEX(tblListedesclasses[],MATCH(SUMPRODUCT((tblListedesclasses[TAG]=tblHoraires[[#Headers],[DIENSTAG]])*($B59>=tblListedesclasses[BEGINNZEIT])*($B59<=tblListedesclasses[ENDZEIT]),tblListedesclasses[UNIQUE]),tblListedesclasses[UNIQUE],0),2),0)","v":0},{"$f":"IFERROR(INDEX(tblListedesclasses[],MATCH(SUMPRODUCT((tblListedesclasses[TAG]=tblHoraires[[#Headers],[MITTWOCH]])*($B59>=tblListedesclasses[BEGINNZEIT])*($B59<=tblListedesclasses[ENDZEIT]),tblListedesclasses[UNIQUE]),tblListedesclasses[UNIQUE],0),2),0)","v":0},{"$f":"IFERROR(INDEX(tblListedesclasses[],MATCH(SUMPRODUCT((tblListedesclasses[TAG]=tblHoraires[[#Headers],[DONNERSTAG]])*($B59>=tblListedesclasses[BEGINNZEIT])*($B59<=tblListedesclasses[ENDZEIT]),tblListedesclasses[UNIQUE]),tblListedesclasses[UNIQUE],0),2),0)","v":0},{"$f":"IFERROR(INDEX(tblListedesclasses[],MATCH(SUMPRODUCT((tblListedesclasses[TAG]=tblHoraires[[#Headers],[FREITAG]])*($B59>=tblListedesclasses[BEGINNZEIT])*($B59<=tblListedesclasses[ENDZEIT]),tblListedesclasses[UNIQUE]),tblListedesclasses[UNIQUE],0),2),0)","v":0},{"$f":"IFERROR(INDEX(tblListedesclasses[],MATCH(SUMPRODUCT((tblListedesclasses[TAG]=tblHoraires[[#Headers],[SAMSTAG]])*($B59>=tblListedesclasses[BEGINNZEIT])*($B59<=tblListedesclasses[ENDZEIT]),tblListedesclasses[UNIQUE]),tblListedesclasses[UNIQUE],0),2),0)","v":0}]
[null,"21:45:00",{"$f":"IFERROR(INDEX(tblListedesclasses[],MATCH(SUMPRODUCT((tblListedesclasses[TAG]=tblHoraires[[#Headers],[SONNTAG]])*($B60>=tblListedesclasses[BEGINNZEIT])*($B60<=tblListedesclasses[ENDZEIT]),tblListedesclasses[UNIQUE]),tblListedesclasses[UNIQUE],0),2),0)","v":0},{"$f":"IFERROR(INDEX(tblListedesclasses[],MATCH(SUMPRODUCT((tblListedesclasses[TAG]=tblHoraires[[#Headers],[MONTAG]])*($B60>=tblListedesclasses[BEGINNZEIT])*($B60<=tblListedesclasses[ENDZEIT]),tblListedesclasses[UNIQUE]),tblListedesclasses[UNIQUE],0),2),0)","v":0},{"$f":"IFERROR(INDEX(tblListedesclasses[],MATCH(SUMPRODUCT((tblListedesclasses[TAG]=tblHoraires[[#Headers],[DIENSTAG]])*($B60>=tblListedesclasses[BEGINNZEIT])*($B60<=tblListedesclasses[ENDZEIT]),tblListedesclasses[UNIQUE]),tblListedesclasses[UNIQUE],0),2),0)","v":0},{"$f":"IFERROR(INDEX(tblListedesclasses[],MATCH(SUMPRODUCT((tblListedesclasses[TAG]=tblHoraires[[#Headers],[MITTWOCH]])*($B60>=tblListedesclasses[BEGINNZEIT])*($B60<=tblListedesclasses[ENDZEIT]),tblListedesclasses[UNIQUE]),tblListedesclasses[UNIQUE],0),2),0)","v":0},{"$f":"IFERROR(INDEX(tblListedesclasses[],MATCH(SUMPRODUCT((tblListedesclasses[TAG]=tblHoraires[[#Headers],[DONNERSTAG]])*($B60>=tblListedesclasses[BEGINNZEIT])*($B60<=tblListedesclasses[ENDZEIT]),tblListedesclasses[UNIQUE]),tblListedesclasses[UNIQUE],0),2),0)","v":0},{"$f":"IFERROR(INDEX(tblListedesclasses[],MATCH(SUMPRODUCT((tblListedesclasses[TAG]=tblHoraires[[#Headers],[FREITAG]])*($B60>=tblListedesclasses[BEGINNZEIT])*($B60<=tblListedesclasses[ENDZEIT]),tblListedesclasses[UNIQUE]),tblListedesclasses[UNIQUE],0),2),0)","v":0},{"$f":"IFERROR(INDEX(tblListedesclasses[],MATCH(SUMPRODUCT((tblListedesclasses[TAG]=tblHoraires[[#Headers],[SAMSTAG]])*($B60>=tblListedesclasses[BEGINNZEIT])*($B60<=tblListedesclasses[ENDZEIT]),tblListedesclasses[UNIQUE]),tblListedesclasses[UNIQUE],0),2),0)","v":0}]
[null,"22:00:00",{"$f":"IFERROR(INDEX(tblListedesclasses[],MATCH(SUMPRODUCT((tblListedesclasses[TAG]=tblHoraires[[#Headers],[SONNTAG]])*($B61>=tblListedesclasses[BEGINNZEIT])*($B61<=tblListedesclasses[ENDZEIT]),tblListedesclasses[UNIQUE]),tblListedesclasses[UNIQUE],0),2),0)","v":0},{"$f":"IFERROR(INDEX(tblListedesclasses[],MATCH(SUMPRODUCT((tblListedesclasses[TAG]=tblHoraires[[#Headers],[MONTAG]])*($B61>=tblListedesclasses[BEGINNZEIT])*($B61<=tblListedesclasses[ENDZEIT]),tblListedesclasses[UNIQUE]),tblListedesclasses[UNIQUE],0),2),0)","v":0},{"$f":"IFERROR(INDEX(tblListedesclasses[],MATCH(SUMPRODUCT((tblListedesclasses[TAG]=tblHoraires[[#Headers],[DIENSTAG]])*($B61>=tblListedesclasses[BEGINNZEIT])*($B61<=tblListedesclasses[ENDZEIT]),tblListedesclasses[UNIQUE]),tblListedesclasses[UNIQUE],0),2),0)","v":0},{"$f":"IFERROR(INDEX(tblListedesclasses[],MATCH(SUMPRODUCT((tblListedesclasses[TAG]=tblHoraires[[#Headers],[MITTWOCH]])*($B61>=tblListedesclasses[BEGINNZEIT])*($B61<=tblListedesclasses[ENDZEIT]),tblListedesclasses[UNIQUE]),tblListedesclasses[UNIQUE],0),2),0)","v":0},{"$f":"IFERROR(INDEX(tblListedesclasses[],MATCH(SUMPRODUCT((tblListedesclasses[TAG]=tblHoraires[[#Headers],[DONNERSTAG]])*($B61>=tblListedesclasses[BEGINNZEIT])*($B61<=tblListedesclasses[ENDZEIT]),tblListedesclasses[UNIQUE]),tblListedesclasses[UNIQUE],0),2),0)","v":0},{"$f":"IFERROR(INDEX(tblListedesclasses[],MATCH(SUMPRODUCT((tblListedesclasses[TAG]=tblHoraires[[#Headers],[FREITAG]])*($B61>=tblListedesclasses[BEGINNZEIT])*($B61<=tblListedesclasses[ENDZEIT]),tblListedesclasses[UNIQUE]),tblListedesclasses[UNIQUE],0),2),0)","v":0},{"$f":"IFERROR(INDEX(tblListedesclasses[],MATCH(SUMPRODUCT((tblListedesclasses[TAG]=tblHoraires[[#Headers],[SAMSTAG]])*($B61>=tblListedesclasses[BEGINNZEIT])*($B61<=tblListedesclasses[ENDZEIT]),tblListedesclasses[UNIQUE]),tblListedesclasses[UNIQUE],0),2),0)","v":0}]
[null,"22:15:00",{"$f":"IFERROR(INDEX(tblListedesclasses[],MATCH(SUMPRODUCT((tblListedesclasses[TAG]=tblHoraires[[#Headers],[SONNTAG]])*($B62>=tblListedesclasses[BEGINNZEIT])*($B62<=tblListedesclasses[ENDZEIT]),tblListedesclasses[UNIQUE]),tblListedesclasses[UNIQUE],0),2),0)","v":0},{"$f":"IFERROR(INDEX(tblListedesclasses[],MATCH(SUMPRODUCT((tblListedesclasses[TAG]=tblHoraires[[#Headers],[MONTAG]])*($B62>=tblListedesclasses[BEGINNZEIT])*($B62<=tblListedesclasses[ENDZEIT]),tblListedesclasses[UNIQUE]),tblListedesclasses[UNIQUE],0),2),0)","v":0},{"$f":"IFERROR(INDEX(tblListedesclasses[],MATCH(SUMPRODUCT((tblListedesclasses[TAG]=tblHoraires[[#Headers],[DIENSTAG]])*($B62>=tblListedesclasses[BEGINNZEIT])*($B62<=tblListedesclasses[ENDZEIT]),tblListedesclasses[UNIQUE]),tblListedesclasses[UNIQUE],0),2),0)","v":0},{"$f":"IFERROR(INDEX(tblListedesclasses[],MATCH(SUMPRODUCT((tblListedesclasses[TAG]=tblHoraires[[#Headers],[MITTWOCH]])*($B62>=tblListedesclasses[BEGINNZEIT])*($B62<=tblListedesclasses[ENDZEIT]),tblListedesclasses[UNIQUE]),tblListedesclasses[UNIQUE],0),2),0)","v":0},{"$f":"IFERROR(INDEX(tblListedesclasses[],MATCH(SUMPRODUCT((tblListedesclasses[TAG]=tblHoraires[[#Headers],[DONNERSTAG]])*($B62>=tblListedesclasses[BEGINNZEIT])*($B62<=tblListedesclasses[ENDZEIT]),tblListedesclasses[UNIQUE]),tblListedesclasses[UNIQUE],0),2),0)","v":0},{"$f":"IFERROR(INDEX(tblListedesclasses[],MATCH(SUMPRODUCT((tblListedesclasses[TAG]=tblHoraires[[#Headers],[FREITAG]])*($B62>=tblListedesclasses[BEGINNZEIT])*($B62<=tblListedesclasses[ENDZEIT]),tblListedesclasses[UNIQUE]),tblListedesclasses[UNIQUE],0),2),0)","v":0},{"$f":"IFERROR(INDEX(tblListedesclasses[],MATCH(SUMPRODUCT((tblListedesclasses[TAG]=tblHoraires[[#Headers],[SAMSTAG]])*($B62>=tblListedesclasses[BEGINNZEIT])*($B62<=tblListedesclasses[ENDZEIT]),tblListedesclasses[UNIQUE]),tblListedesclasses[UNIQUE],0),2),0)","v":0}]
[null,"22:30:00",{"$f":"IFERROR(INDEX(tblListedesclasses[],MATCH(SUMPRODUCT((tblListedesclasses[TAG]=tblHoraires[[#Headers],[SONNTAG]])*($B63>=tblListedesclasses[BEGINNZEIT])*($B63<=tblListedesclasses[ENDZEIT]),tblListedesclasses[UNIQUE]),tblListedesclasses[UNIQUE],0),2),0)","v":0},{"$f":"IFERROR(INDEX(tblListedesclasses[],MATCH(SUMPRODUCT((tblListedesclasses[TAG]=tblHoraires[[#Headers],[MONTAG]])*($B63>=tblListedesclasses[BEGINNZEIT])*($B63<=tblListedesclasses[ENDZEIT]),tblListedesclasses[UNIQUE]),tblListedesclasses[UNIQUE],0),2),0)","v":0},{"$f":"IFERROR(INDEX(tblListedesclasses[],MATCH(SUMPRODUCT((tblListedesclasses[TAG]=tblHoraires[[#Headers],[DIENSTAG]])*($B63>=tblListedesclasses[BEGINNZEIT])*($B63<=tblListedesclasses[ENDZEIT]),tblListedesclasses[UNIQUE]),tblListedesclasses[UNIQUE],0),2),0)","v":0},{"$f":"IFERROR(INDEX(tblListedesclasses[],MATCH(SUMPRODUCT((tblListedesclasses[TAG]=tblHoraires[[#Headers],[MITTWOCH]])*($B63>=tblListedesclasses[BEGINNZEIT])*($B63<=tblListedesclasses[ENDZEIT]),tblListedesclasses[UNIQUE]),tblListedesclasses[UNIQUE],0),2),0)","v":0},{"$f":"IFERROR(INDEX(tblListedesclasses[],MATCH(SUMPRODUCT((tblListedesclasses[TAG]=tblHoraires[[#Headers],[DONNERSTAG]])*($B63>=tblListedesclasses[BEGINNZEIT])*($B63<=tblListedesclasses[ENDZEIT]),tblListedesclasses[UNIQUE]),tblListedesclasses[UNIQUE],0),2),0)","v":0},{"$f":"IFERROR(INDEX(tblListedesclasses[],MATCH(SUMPRODUCT((tblListedesclasses[TAG]=tblHoraires[[#Headers],[FREITAG]])*($B63>=tblListedesclasses[BEGINNZEIT])*($B63<=tblListedesclasses[ENDZEIT]),tblListedesclasses[UNIQUE]),tblListedesclasses[UNIQUE],0),2),0)","v":0},{"$f":"IFERROR(INDEX(tblListedesclasses[],MATCH(SUMPRODUCT((tblListedesclasses[TAG]=tblHoraires[[#Headers],[SAMSTAG]])*($B63>=tblListedesclasses[BEGINNZEIT])*($B63<=tblListedesclasses[ENDZEIT]),tblListedesclasses[UNIQUE]),tblListedesclasses[UNIQUE],0),2),0)","v":0}]
[null,"22:45:00",{"$f":"IFERROR(INDEX(tblListedesclasses[],MATCH(SUMPRODUCT((tblListedesclasses[TAG]=tblHoraires[[#Headers],[SONNTAG]])*($B64>=tblListedesclasses[BEGINNZEIT])*($B64<=tblListedesclasses[ENDZEIT]),tblListedesclasses[UNIQUE]),tblListedesclasses[UNIQUE],0),2),0)","v":0},{"$f":"IFERROR(INDEX(tblListedesclasses[],MATCH(SUMPRODUCT((tblListedesclasses[TAG]=tblHoraires[[#Headers],[MONTAG]])*($B64>=tblListedesclasses[BEGINNZEIT])*($B64<=tblListedesclasses[ENDZEIT]),tblListedesclasses[UNIQUE]),tblListedesclasses[UNIQUE],0),2),0)","v":0},{"$f":"IFERROR(INDEX(tblListedesclasses[],MATCH(SUMPRODUCT((tblListedesclasses[TAG]=tblHoraires[[#Headers],[DIENSTAG]])*($B64>=tblListedesclasses[BEGINNZEIT])*($B64<=tblListedesclasses[ENDZEIT]),tblListedesclasses[UNIQUE]),tblListedesclasses[UNIQUE],0),2),0)","v":0},{"$f":"IFERROR(INDEX(tblListedesclasses[],MATCH(SUMPRODUCT((tblListedesclasses[TAG]=tblHoraires[[#Headers],[MITTWOCH]])*($B64>=tblListedesclasses[BEGINNZEIT])*($B64<=tblListedesclasses[ENDZEIT]),tblListedesclasses[UNIQUE]),tblListedesclasses[UNIQUE],0),2),0)","v":0},{"$f":"IFERROR(INDEX(tblListedesclasses[],MATCH(SUMPRODUCT((tblListedesclasses[TAG]=tblHoraires[[#Headers],[DONNERSTAG]])*($B64>=tblListedesclasses[BEGINNZEIT])*($B64<=tblListedesclasses[ENDZEIT]),tblListedesclasses[UNIQUE]),tblListedesclasses[UNIQUE],0),2),0)","v":0},{"$f":"IFERROR(INDEX(tblListedesclasses[],MATCH(SUMPRODUCT((tblListedesclasses[TAG]=tblHoraires[[#Headers],[FREITAG]])*($B64>=tblListedesclasses[BEGINNZEIT])*($B64<=tblListedesclasses[ENDZEIT]),tblListedesclasses[UNIQUE]),tblListedesclasses[UNIQUE],0),2),0)","v":0},{"$f":"IFERROR(INDEX(tblListedesclasses[],MATCH(SUMPRODUCT((tblListedesclasses[TAG]=tblHoraires[[#Headers],[SAMSTAG]])*($B64>=tblListedesclasses[BEGINNZEIT])*($B64<=tblListedesclasses[ENDZEIT]),tblListedesclasses[UNIQUE]),tblListedesclasses[UNIQUE],0),2),0)","v":0}]

{"sheet":"Liste der Aktivitäten","index":1,"n_rows":40,"n_cols":8,"rows_kept":40,"cut":false,"hidden":false,"merged":[[1,1,1,5],[1,6,1,7]]}
[]
[null,"Liste der Aktivitäten"]
[null,"Was?","Wer?","TAG","ORT","BEGINNZEIT","ENDZEIT","UNIQUE"]
[null,"Hilfe beim Einkaufen","Alice","DONNERSTAG","im Dorf","09:00:00","10:00:00",{"$f":"ROW()-ROW(tblListedesclasses[[#Headers],[UNIQUE]])","v":1}]
[null," Hilfe beim Einkaufen","Bruno","FREITAG","Supermarkt","16:30:00","17:30:00",{"$f":"ROW()-ROW(tblListedesclasses[[#Headers],[UNIQUE]])","v":2}]
[null,"Freundschaftsbesuch","Charles","MITTWOCH","zu Hause","13:00:00","15:00:00",{"$f":"ROW()-ROW(tblListedesclasses[[#Headers],[UNIQUE]])","v":3}]
[null,"Haushalt","Maria","MONTAG","zu Hause","16:00:00","17:00:00",{"$f":"ROW()-ROW(tblListedesclasses[[#Headers],[UNIQUE]])","v":4}]
[null,"Pflege","Spitex","DIENSTAG","zu Hause","11:00:00","12:00:00",{"$f":"ROW()-ROW(tblListedesclasses[[#Headers],[UNIQUE]])","v":5}]
[null,"Pflege","Spitex","FREITAG","zu Hause","09:00:00","09:30:00",{"$f":"ROW()-ROW(tblListedesclasses[[#Headers],[UNIQUE]])","v":6}]
[null,"Mahlzeitendienst","Mahlzeitendienst","DONNERSTAG","zu Hause","12:30:00","13:00:00",{"$f":"ROW()-ROW(tblListedesclasses[[#Headers],[UNIQUE]])","v":7}]
[null,"Mahlzeitendienst","Mahlzeitendienst","MONTAG","zu Hause","12:30:00","13:00:00",{"$f":"ROW()-ROW(tblListedesclasses[[#Headers],[UNIQUE]])","v":8}]
[null,"Kino für Senioren","ProSenectute","SAMSTAG","Strasse 45","13:30:00","15:00:00",{"$f":"ROW()-ROW(tblListedesclasses[[#Headers],[UNIQUE]])","v":9}]
[null,"Buch vorlesen","Mimi","SAMSTAG","zu Hause","08:30:00","10:30:00",{"$f":"ROW()-ROW(tblListedesclasses[[#Headers],[UNIQUE]])","v":10}]
[null,"Brunch mit der Familie","Ich","SONNTAG","zu uns","09:30:00","11:00:00",{"$f":"ROW()-ROW(tblListedesclasses[[#Headers],[UNIQUE]])","v":11}]
[null,null,null,null,null,null,null,{"$f":"ROW()-ROW(tblListedesclasses[[#Headers],[UNIQUE]])","v":12}]
[null,null,null,null,null,null,null,{"$f":"ROW()-ROW(tblListedesclasses[[#Headers],[UNIQUE]])","v":13}]
[null,null,null,null,null,null,null,{"$f":"ROW()-ROW(tblListedesclasses[[#Headers],[UNIQUE]])","v":14}]
[null,null,null,null,null,null,null,{"$f":"ROW()-ROW(tblListedesclasses[[#Headers],[UNIQUE]])","v":15}]
[null,null,null,null,null,null,null,{"$f":"ROW()-ROW(tblListedesclasses[[#Headers],[UNIQUE]])","v":16}]
[null,null,null,null,null,null,null,{"$f":"ROW()-ROW(tblListedesclasses[[#Headers],[UNIQUE]])","v":17}]
[null,null,null,null,null,null,null,{"$f":"ROW()-ROW(tblListedesclasses[[#Headers],[UNIQUE]])","v":18}]
[null,null,null,null,null,null,null,{"$f":"ROW()-ROW(tblListedesclasses[[#Headers],[UNIQUE]])","v":19}]
[null,null,null,null,null,null,null,{"$f":"ROW()-ROW(tblListedesclasses[[#Headers],[UNIQUE]])","v":20}]
[null,null,null,null,null,null,null,{"$f":"ROW()-ROW(tblListedesclasses[[#Headers],[UNIQUE]])","v":21}]
[null,null,null,null,null,null,null,{"$f":"ROW()-ROW(tblListedesclasses[[#Headers],[UNIQUE]])","v":22}]
[null,null,null,null,null,null,null,{"$f":"ROW()-ROW(tblListedesclasses[[#Headers],[UNIQUE]])","v":23}]
[null,null,null,null,null,null,null,{"$f":"ROW()-ROW(tblListedesclasses[[#Headers],[UNIQUE]])","v":24}]
[null,null,null,null,null,null,null,{"$f":"ROW()-ROW(tblListedesclasses[[#Headers],[UNIQUE]])","v":25}]
[null,null,null,null,null,null,null,{"$f":"ROW()-ROW(tblListedesclasses[[#Headers],[UNIQUE]])","v":26}]
[null,null,null,null,null,null,null,{"$f":"ROW()-ROW(tblListedesclasses[[#Headers],[UNIQUE]])","v":27}]
[null,null,null,null,null,null,null,{"$f":"ROW()-ROW(tblListedesclasses[[#Headers],[UNIQUE]])","v":28}]
[null,null,null,null,null,null,null,{"$f":"ROW()-ROW(tblListedesclasses[[#Headers],[UNIQUE]])","v":29}]
[null,null,null,null,null,null,null,{"$f":"ROW()-ROW(tblListedesclasses[[#Headers],[UNIQUE]])","v":30}]
[null,null,null,null,null,null,null,{"$f":"ROW()-ROW(tblListedesclasses[[#Headers],[UNIQUE]])","v":31}]
[null,null,null,null,null,null,null,{"$f":"ROW()-ROW(tblListedesclasses[[#Headers],[UNIQUE]])","v":32}]
[null,null,null,null,null,null,null,{"$f":"ROW()-ROW(tblListedesclasses[[#Headers],[UNIQUE]])","v":33}]
[null,null,null,null,null,null,null,{"$f":"ROW()-ROW(tblListedesclasses[[#Headers],[UNIQUE]])","v":34}]
[null,null,null,null,null,null,null,{"$f":"ROW()-ROW(tblListedesclasses[[#Headers],[UNIQUE]])","v":35}]
[null,"Mahlzeit auswärts","Kirche","MITTWOCH","Pfarrhaus","12:00:00","14:00:00",{"$f":"ROW()-ROW(tblListedesclasses[[#Headers],[UNIQUE]])","v":36}]
[null,"Infobesuch","Ich","SONNTAG","zu Hause","19:00:00","20:00:00",{"$f":"ROW()-ROW(tblListedesclasses[[#Headers],[UNIQUE]])","v":37}]